Workbook

Sheet A1.1 LDC Information
C20: Applicant Name | D20: Festival Hydro Inc. | F20: OEB Audit | AA20: Company Name | AB20: Licence Number | AC20: EB Number | AD20: Application Type | AE20: Effective Date | AF20: Stretch Factor | AG20: Last Rebasing | AH20: Previous COS EB Number
F21: ='Z1.0 OEB Control Sheet'!F2 -> No | AA21: Algoma Power Inc. | AB21: ED-2009-0072 | AC21: EB-2011-0152 | AD21: IRM3 | AE21: 2012-05-01 | AF21: II | AG21: 2010 | AH21: EB-2010-0400
C22: Application Type | D22: IRM3 | AA22: Atikokan Hydro Inc. | AB22: ED-2003-0001 | AD22: IRM3 | AE22: 2012-05-01 | AF22: II | AG22: 2006 | AH22: EB-2005-0371
AA23: Attawapiskat Power Corp. | AB23: ED-2001-0090 | AD23: IRM3 | AE23: 2012-05-01 | AF23: II | AG23: 2006
C24: LDC Licence Number | D24: ED-2002-0513 | AA24: Bluewater Power Distribution Corporation | AB24: ED-2002-0517 | AC24: EB-2011-0153 | AD24: IRM3 | AE24: 2012-05-01 | AF24: II | AG24: 2009 | AH24: EB-2008-0221
AA25: Brant County Power Inc. | AB25: ED-2002-0522 | AC25: EB-2011-0154 | AD25: IRM3 | AE25: 2012-05-01 | AF25: II | AG25: 2011 | AH25: EB-2010-0125
C26: Applied for Effective Date | D26: 2013-05-01 | F26: May 1, 2013 | AA26: Brantford Power Inc. | AB26: ED-2003-0060 | AC26: EB-2011-0147 | AD26: IRM3 | AE26: 2012-05-01 | AF26: II | AG26: 2008 | AH26: EB-2007-0698
AA27: Burlington Hydro Inc. | AB27: ED-2003-0004 | AC27: EB-2011-0155 | AD27: IRM3 | AE27: 2012-05-01 | AF27: II | AG27: 2010 | AH27: EB-2009-0259
C28: Stretch Factor Group | D28: I | AA28: Cambridge and North Dumfries Hydro Inc. | AB28: ED-2002-0574 | AC28: EB-2011-0156 | AD28: IRM3 | AE28: 2012-05-01 | AF28: II | AG28: 2010 | AH28: EB-2009-0260
AA29: Canadian Niagara Power Inc. - Eastern Ontario Power | AB29: ED-2002-0572 | AC29: EB-2011-0158 | AD29: IRM3 | AE29: 2012-05-01 | AF29: II | AG29: 2009 | AH29: EB-2008-0222
C30: Stretch Factor Value | D30: =STRETCH(D28) -> 0.002 | AA30: Canadian Niagara Power Inc. - Fort Erie | AB30: ED-2002-0572 | AC30: EB-2011-0158 | AD30: IRM3 | AE30: 2012-05-01 | AF30: II | AG30: 2009 | AH30: EB-2008-0223
AA31: Canadian Niagara Power Inc. - Port Colborne Hydro Inc. | AB31: ED-2002-0572 | AC31: EB-2011-0157 | AD31: IRM3 | AE31: 2012-05-01 | AF31: II | AG31: 2009 | AH31: EB-2008-0224
C32: Last COS Re-based Year | D32: 2010 | AA32: Centre Wellington Hydro Ltd. | AB32: ED-2002-0498 | AC32: EB-2011-0160 | AD32: IRM3 | AE32: 2012-05-01 | AF32: II | AG32: 2009 | AH32: EB-2008-0225
AA33: Chapleau Public Utilities Corporation | AB33: ED-2002-0528 | AD33: IRM3 | AE33: 2012-05-01 | AF33: II | AG33: 2008 | AH33: EB-2007-0755
C34: Last COS OEB Application Number | D34: EB-2009-0263 | AA34: Chatham-Kent Hydro Inc. | AB34: ED-2002-0563 | AC34: EB-2011-0163 | AD34: IRM3 | AE34: 2012-05-01 | AF34: II | AG34: 2010 | AH34: EB-2009-0261
AA35: Clinton Power Corporation | AB35: ED-2002-0496 | AC35: EB-2011-0162 | AD35: IRM3 | AE35: 2012-05-01 | AF35: II | AG35: 2010 | AH35: EB-2009-0262
C36: ICM Billing Determinants for Growth - Numerator | D36: =ICMGrowthNumerator(D32) -> 2010 Re-based Forecast | AA36: COLLUS Power Corporation | AB36: ED-2002-0518 | AC36: EB-2011-0163 | AD36: IRM3 | AE36: 2012-05-01 | AF36: II | AG36: 2009 | AH36: EB-2008-0226
AA37: Cooperative Hydro Embrun Inc. | AB37: ED-2002-0493 | AC37: EB-2011-0164 | AD37: IRM3 | AE37: 2012-05-01 | AF37: II | AG37: 2010 | AH37: EB-2009-0132
C38: ICM Billing Determinants for Growth - Denominator | D38: =ICMGrowthDenominator(D32) -> 2011 Actual | AA38: E.L.K. Energy Inc. | AB38: ED-2003-0015 | AC38: EB-2011-0099 | AD38: IRM3 | AE38: 2012-05-01 | AF38: II | AG38: 2008 | AH38: EB-2007-0840
AA39: Enersource Hydro Mississauga Inc. | AB39: ED-2003-0017 | AC39: EB-2011-0100 | AD39: IRM3 | AE39: 2012-05-01 | AF39: II | AG39: 2008 | AH39: EB-2007-0706
AA40: ENWIN Utilities Ltd. | AB40: ED-2002-0527 | AC40: EB-2011-0165 | AD40: IRM3 | AE40: 2012-05-01 | AF40: II | AG40: 2008 | AH40: EB-2008-0227
AA41: Erie Thames Powerlines Corporation | AB41: ED-2002-0516 | AD41: IRM3 | AE41: 2012-05-01 | AF41: II | AG41: 2008 | AH41: EB-2007-0928
AA42: Espanola Regional Hydro Distribution Corporation | AB42: ED-2002-0502 | AD42: IRM3 | AE42: 2012-05-01 | AF42: II | AG42: 2008 | AH42: EB-2007-0901
AA43: Essex Powerlines Corporation | AB43: ED-2002-0499 | AC43: EB-2011-0166 | AD43: IRM3 | AE43: 2012-05-01 | AF43: II | AG43: 2010 | AH43: EB-2009-0143
AA44: Festival Hydro Inc. | AB44: ED-2002-0513 | AC44: EB-2011-0167 | AD44: IRM3 | AE44: 2012-05-01 | AF44: II | AG44: 2010 | AH44: EB-2009-0263
AA45: Fort Albany Power Corporation | AB45: ED-2003-0079 | AC45: EB-2011-0168 | AD45: IRM3 | AE45: 2012-05-01 | AF45: II | AG45: 2006
AA46: Fort Frances Power Corporation | AB46: ED-2003-0028 | AC46: EB-2011-0146 | AD46: IRM3 | AE46: 2012-05-01 | AF46: II | AG46: 2008 | AH46: EB-2007-0885
AA47: Greater Sudbury Hydro Inc. | AB47: ED-2002-0559 | AC47: EB-2011-0169 | AD47: IRM3 | AE47: 2012-05-01 | AF47: II | AG47: 2009 | AH47: EB-2008-0229
AA48: Grimsby Power Inc. | AB48: ED-2002-0554 | AD48: IRM3 | AE48: 2012-05-01 | AF48: II | AG48: 2006 | AH48: EB-2005-0371
AA49: Guelph Hydro Electric Systems Inc. | AB49: ED-2002-0565 | AC49: EB-2011-0123 | AD49: IRM3 | AE49: 2012-05-01 | AF49: II | AG49: 2008 | AH49: EB-2007-0742
AA50: Haldimand County Hydro Inc. | AB50: ED-2002-0539 | AC50: EB-2011-0170 | AD50: IRM3 | AE50: 2012-05-01 | AF50: II | AG50: 2010 | AH50: EB-2009-0265
AA51: Halton Hills Hydro Inc. | AB51: ED-2002-0552 | AD51: IRM3 | AE51: 2012-05-01 | AF51: II | AG51: 2008 | AH51: EB-2007-0696
AA52: Hearst Power Distribution Company Limited | AB52: ED-2002-0533 | AC52: EB-2011-0171 | AD52: IRM3 | AE52: 2012-05-01 | AF52: II | AG52: 2010 | AH52: EB-2009-0266
AA53: Horizon Utilities Corporation | AB53: ED-2006-0031 | AC53: EB-2011-0172 | AD53: IRM3 | AE53: 2012-05-01 | AF53: II | AG53: 2011 | AH53: EB-2010-0131
AA54: Hydro 2000 Inc. | AB54: ED-2002-0542 | AD54: IRM3 | AE54: 2012-05-01 | AF54: II | AG54: 2008 | AH54: EB-2007-0704
AA55: Hydro Hawkesbury Inc. | AB55: ED-2003-0027 | AC55: EB-2011-0173 | AD55: IRM3 | AE55: 2012-05-01 | AF55: II | AG55: 2010 | AH55: EB-2009-0186
AA56: Hydro One Brampton Networks Inc. | AB56: ED-2003-0038 | AC56: EB-2011-0174 | AD56: IRM3 | AE56: 2012-05-01 | AF56: II | AG56: 2011 | AH56: EB-2010-0132
AA57: Hydro One Networks Inc. | AB57: ED-2003-0043 | AC57: EB-2011-0215 | AD57: IRM3 | AE57: 2012-05-01 | AF57: II | AG57: 2010 | AH57: EB-2009-0096
AA58: Hydro One Remote Communities Inc. | AB58: ED-2003-0037 | AC58: EB-2011-0175 | AD58: IRM3 | AE58: 2012-05-01 | AF58: II | AG58: 2009 | AH58: EB-2008-0232
AA59: Hydro Ottawa Limited | AB59: ED-2002-0556 | AC59: EB-2011-0054 | AD59: IRM3 | AE59: 2012-05-01 | AF59: II | AG59: 2008 | AH59: EB-2007-0713
AA60: Innisfil Hydro Distribution Systems Limited | AB60: ED-2002-0520 | AC60: EB-2011-0176 | AD60: IRM3 | AE60: 2012-05-01 | AF60: II | AG60: 2009 | AH60: EB-2008-0233
AA61: Kashechewan Power Corporation | AB61: ED-2003-0081 | AD61: IRM3 | AE61: 2012-05-01 | AF61: II | AG61: 2006 | AH61: EB-2005-0383
AA62: Kenora Hydro Electric Corporation Ltd. | AB62: ED-2003-0030 | AC62: EB-2011-0177 | AD62: IRM3 | AE62: 2012-05-01 | AF62: II | AG62: 2011 | AH62: EB-2010-0135
AA63: Kingston Hydro Corporation | AB63: ED-2003-0057 | AC63: EB-2011-0178 | AD63: IRM3 | AE63: 2012-05-01 | AF63: II | AG63: 2011 | AH63: EB-2010-0136
AA64: Kitchener-Wilmot Hydro Inc. | AB64: ED-2002-0573 | AC64: EB-2011-0179 | AD64: IRM3 | AE64: 2012-05-01 | AF64: II | AG64: 2010 | AH64: EB-2009-0267
AA65: Lakefront Utilities Inc. | AB65: ED-2002-0545 | AD65: IRM3 | AE65: 2012-05-01 | AF65: II | AG65: 2008 | AH65: EB-2007-0761
AA66: Lakeland Power Distribution Ltd. | AB66: ED-2002-0540 | AC66: EB-2011-0180 | AD66: IRM3 | AE66: 2012-05-01 | AF66: II | AG66: 2009 | AH66: EB-2008-0234
AA67: London Hydro Inc. | AB67: ED-2002-0567 | AC67: EB-2011-0181 | AD67: IRM3 | AE67: 2012-05-01 | AF67: II | AG67: 2008 | AH67: EB-2008-0235
AA68: Middlesex Power Distribution Corporation | AB68: ED-2003-0059 | AC68: EB-2011-0148 | AD68: IRM3 | AE68: 2012-05-01 | AF68: II | AG68: 2006 | AH68: EB-2005-0351
AA69: Middlesex Power Distribution Corporation - Dutton | AB69: ED-2003-0059 | AC69: EB-2011-0149 | AD69: IRM3 | AE69: 2012-05-01 | AF69: II | AG69: 2009 | AH69: EB-2009-0177
AA70: Middlesex Power Distribution Corporation - Newbury | AB70: ED-2003-0059 | AC70: EB-2011-0150 | AD70: IRM3 | AE70: 2012-05-01 | AF70: II | AG70: 2008 | AH70: EB-2007-0864
AA71: Midland Power Utility Corporation | AB71: ED-2002-0541 | AC71: EB-2011-0182 | AD71: IRM3 | AE71: 2012-05-01 | AF71: II | AG71: 2009 | AH71: EB-2008-0236
AA72: Milton Hydro Distribution inc. | AB72: ED-2003-0014 | AC72: EB-2011-0183 | AD72: IRM3 | AE72: 2012-05-01 | AF72: II | AG72: 2011 | AH72: EB-2010-0137
AA73: Newmarket-Tay Power Distribution Ltd. | AB73: ED-2007-0624 | AC73: EB-2011-0184 | AD73: IRM3 | AE73: 2012-05-01 | AF73: II | AG73: 2010 | AH73: EB-2009-0269
AA74: Niagara Peninsula Energy Inc. | AB74: ED-2007-0749 | AC74: EB-2011-0185 | AD74: IRM3 | AE74: 2012-05-01 | AF74: II | AG74: 2011 | AH74: EB-2010-0138
AA75: Niagara-on-the-Lake Hydro Inc. | AB75: ED-2002-0547 | AC75: EB-2011-0186 | AD75: IRM3 | AE75: 2012-05-01 | AF75: II | AG75: 2009 | AH75: EB-2008-0237
AA76: Norfolk Power Distribution Inc. | AB76: ED-2002-0521 | AD76: IRM3 | AE76: 2012-05-01 | AF76: II | AG76: 2008 | AH76: EB-2007-0753
AA77: North Bay Hydro Distribution Limited | AB77: ED-2003-0024 | AC77: EB-2011-0187 | AD77: IRM3 | AE77: 2012-05-01 | AF77: II | AG77: 2010 | AH77: EB-2009-0270
AA78: Northern Ontario Wires Inc. | AB78: ED-2003-0118 | AC78: EB-2011-0188 | AD78: IRM3 | AE78: 2012-05-01 | AF78: II | AG78: 2009 | AH78: EB-2008-0238
AA79: Oakville Hydro Electricity Distribution Inc. | AB79: ED-2003-0135 | AC79: EB-2011-0189 | AD79: IRM3 | AE79: 2012-05-01 | AF79: II | AG79: 2010 | AH79: EB-2009-0271
AA80: Orangeville Hydro Limited | AB80: ED-2002-0500 | AC80: EB-2011-0190 | AD80: IRM3 | AE80: 2012-05-01 | AF80: II | AG80: 2010 | AH80: EB-2009-0272
AA81: Orillia Power Distribution Corporation | AB81: ED-2002-0530 | AC81: EB-2011-0191 | AD81: IRM3 | AE81: 2012-05-01 | AF81: II | AG81: 2008 | AH81: EB-2009-0273
AA82: Oshawa PUC Networks Inc. | AB82: ED-2002-0560 | AC82: EB-2011-0073 | AD82: IRM3 | AE82: 2012-05-01 | AF82: II | AG82: 2008 | AH82: EB-2007-0710
AA83: Ottawa River Power Corporation | AB83: ED-2003-0033 | AC83: EB-2011-0192 | AD83: IRM3 | AE83: 2012-05-01 | AF83: II | AG83: 2010 | AH83: EB-2009-0165
AA84: Parry Sound Power Corporation | AB84: ED-2003-0006 | AC84: EB-2011-0193 | AD84: IRM3 | AE84: 2012-05-01 | AF84: II | AG84: 2011 | AH84: EB-2010-0140
AA85: Peterborough Distribution Incorporated | AB85: ED-2002-0504 | AC85: EB-2011-0194 | AD85: IRM3 | AE85: 2012-05-01 | AF85: II | AG85: 2009 | AH85: EB-2008-0241
AA86: PowerStream Inc. - Barrie | AB86: ED-2004-0420 | AC86: EB-2011-0005 | AD86: IRM3 | AE86: 2012-05-01 | AF86: II | AG86: 2009
AA87: PowerStream Inc. - South | AB87: ED-2004-0420 | AC87: EB-2011-0005 | AD87: IRM3 | AE87: 2012-05-01 | AF87: II | AG87: 2009 | AH87: EB-2008-0244
AA88: PUC Distribution Inc. | AB88: ED-2002-0546 | AC88: EB-2011-0101 | AD88: IRM3 | AE88: 2012-05-01 | AF88: II | AG88: 2008 | AH88: EB-2007-0931
AA89: Renfrew Hydro Inc. | AB89: ED-2002-0577 | AC89: EB-2011-0195 | AD89: IRM3 | AE89: 2012-05-01 | AF89: II | AG89: 2010 | AH89: EB-2009-0146
AA90: Rideau St. Lawrence Distribution Inc. | AB90: ED-2003-0003 | AD90: IRM3 | AE90: 2012-05-01 | AF90: II | AG90: 2008 | AH90: EB-2007-0762
AA91: Sioux Lookout Hydro Inc. | AB91: ED-2002-0514 | AC91: EB-2011-0102 | AD91: IRM3 | AE91: 2012-05-01 | AF91: II | AG91: 2008 | AH91: EB-2007-0785
AA92: St. Thomas Energy Inc. | AB92: ED-2002-0523 | AC92: EB-2011-0196 | AD92: IRM3 | AE92: 2012-05-01 | AF92: II | AG92: 2011 | AH92: EB-2010-0141
AA93: Thunder Bay Hydro Electricity Distribution Inc. | AB93: ED-2002-0529 | AC93: EB-2011-0197 | AD93: IRM3 | AE93: 2012-05-01 | AF93: II | AG93: 2009 | AH93: EB-2008-0245
AA94: Tillsonburg Hydro Inc. | AB94: ED-2003-0026 | AC94: EB-2011-0198 | AD94: IRM3 | AE94: 2012-05-01 | AF94: II | AG94: 2009 | AH94: EB-2008-0246
AA95: Toronto Hydro-Electric System Limited | AB95: ED-2002-0497 | AC95: EB-2011-0144 | AD95: IRM3 | AE95: 2012-05-01 | AF95: II | AG95: 2011 | AH95: EB-2010-0142
AA96: Veridian Connections Inc. | AB96: ED-2002-0503 | AC96: EB-2011-0199 | AD96: IRM3 | AE96: 2012-05-01 | AF96: II | AG96: 2010 | AH96: EB-2009-0140
AA97: Wasaga Distribution Inc. | AB97: ED-2002-0544 | AC97: EB-2011-0103 | AD97: IRM3 | AE97: 2012-05-01 | AF97: II | AG97: 2006 | AH97: EB-2005-0427
AA98: Waterloo North Hydro Inc. | AB98: ED-2002-0575 | AC98: EB-2011-0201 | AD98: IRM3 | AE98: 2012-05-01 | AF98: II | AG98: 2011 | AH98: EB-2010-0144
AA99: Welland Hydro-Electric System Corp. | AB99: ED-2003-0002 | AC99: EB-2011-0202 | AD99: IRM3 | AE99: 2012-05-01 | AF99: II | AG99: 2009 | AH99: EB-2008-0247
AA100: Wellington North Power Inc. | AB100: ED-2002-0511 | AD100: IRM3 | AE100: 2012-05-01 | AF100: II | AG100: 2008 | AH100: EB-2007-0693
AA101: West Coast Huron Energy Inc. | AB101: ED-2002-0510 | AC101: EB-2011-0203 | AD101: IRM3 | AE101: 2012-05-01 | AF101: II | AG101: 2009 | AH101: EB-2008-0248
AA102: West Perth Power Inc. | AB102: ED-2002-0508 | AC102: EB-2011-0204 | AD102: IRM3 | AE102: 2012-05-01 | AF102: II | AG102: 2010 | AH102: EB-2009-0255
AA103: Westario Power Inc. | AB103: ED-2002-0515 | AC103: EB-2011-0205 | AD103: IRM3 | AE103: 2012-05-01 | AF103: II | AG103: 2009 | AH103: EB-2008-0250
AA104: Whitby Hydro Electric Corporation | AB104: ED-2002-0571 | AC104: EB-2011-0206 | AD104: IRM3 | AE104: 2012-05-01 | AF104: II | AG104: 2010 | AH104: EB-2009-0274
AA105: Woodstock Hydro Services Inc. | AB105: ED-2003-0011 | AC105: EB-2011-0207 | AD105: IRM3 | AE105: 2012-05-01 | AF105: II | AG105: 2011 | AH105: EB-2010-0145

Sheet A2.1 Table of Contents
C10: ='Z1.0 OEB Control Sheet'!C3 -> Table of Contents
C20: Sheet Name | D20: Purpose of Sheet
C22: A1.1 LDC Information | D22: =VLOOKUP(C22,'Z1.0 OEB Control Sheet'!D:G,4,0) -> Enter LDC Data
C24: A2.1 Table of Contents | D24: =VLOOKUP(C24,'Z1.0 OEB Control Sheet'!D:G,4,0) -> Table of Contents
C26: B1.1 Re-Based Bill Det & Rates | D26: =VLOOKUP(C26,'Z1.0 OEB Control Sheet'!D:G,4,0) -> Set Up Rate Classes and enter Re-Based Billing Determinants and Tariff Rates
C28: B1.2 Removal of Rate Adders | D28: =VLOOKUP(C28,'Z1.0 OEB Control Sheet'!D:G,4,0) -> Removal of Rate Adders
C30: B1.3 Re-Based Rev From Rates | D30: =VLOOKUP(C30,'Z1.0 OEB Control Sheet'!D:G,4,0) -> Calculated Re-Based Revenue From Rates
C32: B1.4 Re-Based Rev Req | D32: =VLOOKUP(C32,'Z1.0 OEB Control Sheet'!D:G,4,0) -> Detailed Re-Based Revenue From Rates
C34: C1.1 Ld Act-Mst Rcent Yr | D34: =VLOOKUP(C34,'Z1.0 OEB Control Sheet'!D:G,4,0) -> Enter Billing Determinants for most recent actual year
C36: D1.1 Current Revenue from Rates | D36: =VLOOKUP(C36,'Z1.0 OEB Control Sheet'!D:G,4,0) -> Enter Current Rates to calculate current rate allocation
C38: E1.1 Threshold Parameters | D38: =VLOOKUP(C38,'Z1.0 OEB Control Sheet'!D:G,4,0) -> Shows calculation of Price Cap and Growth used for incremental capital threshold calculation
C40: E2.1 Threshold Test | D40: =VLOOKUP(C40,'Z1.0 OEB Control Sheet'!D:G,4,0) -> Input sheet to calculate Threshold and Incremental Capital
C42: E3.1 Summary of I C Projects | D42: =VLOOKUP(C42,'Z1.0 OEB Control Sheet'!D:G,4,0) -> Summary of Incremental Capital Projects
C44: E4.1 IncrementalCapitalAdjust | D44: =VLOOKUP(C44,'Z1.0 OEB Control Sheet'!D:G,4,0) -> Shows Calculation of Incremental Capital Revenue Requirement
C46: F1.1 Incr Cap RRider Opt A FV | D46: =VLOOKUP(C46,'Z1.0 OEB Control Sheet'!D:G,4,0) -> Option A - Calculation of Incremental Capital Rate Rider - Fixed & Variable Split
C48: F1.2 Incr Cap RRider Opt B Var | D48: =VLOOKUP(C48,'Z1.0 OEB Control Sheet'!D:G,4,0) -> Option B - Calculation of Incremental Capital Rate Rider - Variable Allocation
C50: Z1.0 OEB Control Sheet | D50: =VLOOKUP(C50,'Z1.0 OEB Control Sheet'!D:G,4,0) -> Not Shown

Sheet B1.1 Re-Based Bill Det & Rates
C10: ='Z1.0 OEB Control Sheet'!C4 -> Rate Class and Re-Based Billing Determinants & Rates
C12: Select the appropriate Rate Groups and Rate Classes from the drop-down menus in Columns C and D respectively. Following your selection, all appropriate input cells will be shaded green.
D16: Last COS Re-based Year | I16: ='A1.1 LDC Information'!D32 -> 2010
D18: Last COS OEB Application Number | I18: ='A1.1 LDC Information'!D34 -> EB-2009-0263
B20: Control | C20: Rate Group | D20: Rate Class | E20: Fixed Metric | F20: Vol Metric | G20: OEB Audit | I20: Re-based Billed Customers or Connections | J20: Re-based Billed kWh | K20: Re-based Billed kW | M20: Re-based Tariff Service Charge | N20: Re-based Tariff Distribution Volumetric Rate kWh | O20: Re-based Tariff Distribution Volumetric Rate kW | AA20: Residential | AB20: Threshold | AD20: Less Than 50 | AE20: Threshold | AG20: Greater Than 50 | AH20: Threshold | AJ20: Large Use | AK20: Threshold | AM20: USL | AN20: Threshold | AP20: Sentinel | AQ20: Threshold | AS20: Street | AT20: Threshold | AV20: EMB | AY20: SB
I21: A | J21: B | K21: C | M21: D | N21: E | O21: F | AA21: Residential | AB21: 250 / 2,250 | AD21: General Service Less Than 50 kW | AE21: 2,000 / 20,000 | AG21: General Service 50 to 499 kW | AH21: 50 / 500 | AJ21: Large Use | AK21: 5,000 / 100,000 | AM21: Unmetered Scattered Load | AN21: 500 / 20,000 | AP21: Sentinel Lighting | AQ21: 0.2 / 1.0 | AS21: Street Lighting | AT21: 0.2 / 1.0 | AV21: Embedded Distributor | AY21: Stand-By
B22: 1 | C22: RES | D22: Residential | E22: Customer | F22: kWh | I22: 17115 | J22: 141132375 | M22: 14.75 | N22: 0.0163 | AA22: Residential Regular | AB22: 250 / 2,250 | AD22: General Service Less Than 50 kW – Single Phase energy-billed [G1] | AE22: 2,000 / 20,000 | AG22: General Service 50 to 699 kW | AH22: 50 / 700 | AJ22: Large Use - Regular | AK22: 5,000 / 100,000 | AV22: Low Voltage Wheeling Charge Rate | AY22: Standby Power
B23: 2 | C23: RES | D23: Residential - Hensall | E23: Customer | F23: kWh | I23: 413 | J23: 4143109 | M23: 11.21 | N23: 0.012 | AA23: Residential Urban | AB23: 250 / 2,250 | AD23: General Service Less Than 50 kW – Three Phase energy-billed [G3] | AE23: 2,000 / 20,000 | AG23: General Service 50 to 999 kW | AH23: 50 / 1,000 | AJ23: Large Use > 5000 kW | AK23: 5,000 / 100,000 | AY23: Standby Power – INTERIM APPROVAL
B24: 3 | C24: GSLT50 | D24: General Service Less Than 50 kW | E24: Customer | F24: kWh | I24: 1968 | J24: 67469308 | M24: 29.05 | N24: 0.0145 | AA24: Residential Urban Year-Round | AB24: 250 / 2,250 | AD24: General Service Less Than 50 kW – Transmission Class energy-billed [T] | AE24: 2,000 / 20,000 | AG24: General Service 50 to 1,000 kW - Interval Meters | AH24: 50 / 1,000 | AJ24: Large Use - 3TS | AK24: 5,000 / 100,000 | AY24: Standby Power - APPROVED ON AN INTERIM BASIS
B25: 4 | C25: GSGT50 | D25: General Service 50 to 4,999 kW | E25: Customer | F25: kW | I25: 221 | J25: 316941804 | K25: 797792 | M25: 220.21 | O25: 2.2579 | AA25: Residential Suburban | AB25: 250 / 2,250 | AD25: General Service Less Than 50 kW – Urban energy-billed [UG] | AE25: 2,000 / 20,000 | AG25: General Service 50 to 1,000 kW - Non Interval Meters | AH25: 50 / 1,000 | AJ25: Large Use - Ford Annex | AK25: 5,000 / 100,000 | AY25: Standby - General Service 50 - 1,000 kW
B26: 5 | C26: LU | D26: Large Use | E26: Customer | F26: kW | I26: 2 | J26: 65544852 | K26: 128687 | M26: 10692.01 | O26: 0.9922 | AA26: Residential Suburban Seasonal | AB26: 250 / 2,250 | AD26: Westport Sewage Treatment Plant | AE26: 2,000 / 20,000 | AG26: General Service 50 to 1,499 kW | AH26: 50 / 1,500 | AY26: Standby Power General Service 50 to 1,499 kW
B27: 6 | C27: USL | D27: Unmetered Scattered Load | E27: Connection | F27: kWh | I27: 156 | J27: 629732 | M27: 12.6 | N27: 0.0125 | AA27: Residential Suburban Year Round | AB27: 250 / 2,250 | AD27: Small Commercial and USL - per meter | AE27: 2,000 / 20,000 | AG27: General Service 50 to 2,499 kW | AH27: 50 / 2,500 | AY27: Standby - General Service 1,000 - 5,000 kW
B28: 7 | C28: Sen | D28: Sentinel Lighting | E28: Connection | F28: kW | I28: 83 | J28: 234690 | K28: 679 | M28: 1.41 | O28: 7.3991 | AA28: Residential - Time of Use | AB28: 250 / 2,250 | AD28: Small Commercial and USL - per connection | AE28: 2,000 / 20,000 | AG28: General Service 50 to 2,999 kW | AH28: 50 / 3,000 | AY28: Standby Power General Service 1,500 to 4,999 kW
B29: 8 | C29: SL | D29: Street Lighting | E29: Connection | F29: kW | I29: 5915 | J29: 3904130 | K29: 11255 | M29: 0.77 | O29: 3.4865 | AA29: Residential - Hensall | AB29: 250 / 2,250 | AD29: Farms – Single Phase energy-billed [F1] | AE29: 2,000 / 20,000 | AG29: General Service 50 to 2,999 kW - Time of Use | AH29: 50 / 3,000 | AY29: Standby - Large Use
B30: 9 | C30: NA | D30: Rate Class 9 | E30: NA | F30: NA | AA30: Residential – High Density [R1] | AB30: 250 / 2,250 | AG30: General Service 50 to 4,999 kW | AH30: 50 / 5,000 | AY30: Standby Power General Service Large Use
B31: 10 | C31: NA | D31: Rate Class 10 | E31: NA | F31: NA | AA31: Residential – Normal Density [R2] | AB31: 250 / 2,250 | AG31: General Service 50 to 4,999 kW - Time of Use | AH31: 50 / 5,000 | AY31: Standby Distribution Service
B32: 11 | C32: NA | D32: Rate Class 11 | E32: NA | F32: NA | AA32: Seasonal Residential – High Density [R3] | AB32: 250 / 2,250 | AG32: General Service 50 to 4,999 kW (CoGeneration) | AH32: 50 / 5,000
B33: 12 | C33: NA | D33: Rate Class 12 | E33: NA | F33: NA | AA33: Seasonal Residential – Normal Density [R4] | AB33: 250 / 2,250 | AG33: General Service 50 to 4,999 kW (formerly Time of Use) | AH33: 50 / 5,000
B34: 13 | C34: NA | D34: Rate Class 13 | E34: NA | F34: NA | AA34: Residential – Urban [UR] | AB34: 250 / 2,250 | AG34: General Service 50 to 4,999 kW – Time of Use by Service Area - Blenheim | AH34: 50 / 5,000
B35: 14 | C35: NA | D35: Rate Class 14 | E35: NA | F35: NA | AG35: General Service 50 to 4,999 kW – Time of Use by Service Area - Chatham | AH35: 50 / 5,000
B36: 15 | C36: NA | D36: Rate Class 15 | E36: NA | F36: NA | AG36: General Service 500 to 4,999 kW | AH36: 500 / 5,000
B37: 16 | C37: NA | D37: Rate Class 16 | E37: NA | F37: NA | AG37: General Service 700 to 4,999 kW | AH37: 700 / 5,000
B38: 17 | C38: NA | D38: Rate Class 17 | E38: NA | F38: NA | AG38: General Service 1,000 to 2,999 kW | AH38: 1,000 / 3,000
B39: 18 | C39: NA | D39: Rate Class 18 | E39: NA | F39: NA | AG39: General Service 1,000 to 4,999 kW | AH39: 1,000 / 5,000
B40: 19 | C40: NA | D40: Rate Class 19 | E40: NA | F40: NA | AG40: General Service 1,500 to 4,999 kW | AH40: 1,500 / 5,000
B41: 20 | C41: NA | D41: Rate Class 20 | E41: NA | F41: NA | AG41: General Service 2,500 to 4,999 kW | AH41: 2,500 / 5,000
B42: 21 | C42: NA | D42: Rate Class 21 | E42: NA | F42: NA | AG42: General Service 3,000 to 4,999 kW | AH42: 3,000 / 5,000
B43: 22 | C43: NA | D43: Rate Class 22 | E43: NA | F43: NA | AG43: General Service 3,000 to 4.999 kW - Time of Use | AH43: 3,000 / 5,000
B44: 23 | C44: NA | D44: Rate Class 23 | E44: NA | F44: NA | AG44: General Service - Commercial | AH44: 50 / 5,000
B45: 24 | C45: NA | D45: Rate Class 24 | E45: NA | F45: NA | AG45: General Service - Institutional | AH45: 50 / 5,000
B46: 25 | C46: NA | D46: Rate Class 25 | E46: NA | F46: NA | AG46: Farms – Three Phase energy-billed [F3] | AH46: 50 / 5,000

Sheet B1.2 Removal of Rate Adders
C10: ='Z1.0 OEB Control Sheet'!C5 -> Removal of Rate Adders
C13: Last COS Re-based Year | F13: ='A1.1 LDC Information'!D32 -> 2010
C15: Last COS OEB Application Number | F15: ='A1.1 LDC Information'!D34 -> EB-2009-0263
C20: Rate Class | E20: Re-based Tariff Service Charge | F20: Re-based Tariff Distribution Volumetric Rate kWh | G20: Re-based Tariff Distribution Volumetric Rate kW | I20: Service Charge Rate Adders | J20: Distribution Volumetric kWh Rate Adders | K20: Distribution Volumetric kW Rate Adders | M20: Re-based Base Service Charge | N20: Re-based Base Distribution Volumetric Rate kWh | O20: Re-based Base Distribution Volumetric Rate kW
E21: A | F21: B | G21: C | I21: D | J21: E | K21: F | M21: H = A - D | N21: I = B - E | O21: J = C - F
C22: ='B1.1 Re-Based Bill Det & Rates'!D22 -> Residential | E22: ='B1.1 Re-Based Bill Det & Rates'!M22 -> 14.75 | F22: ='B1.1 Re-Based Bill Det & Rates'!N22 -> 0.0163 | G22: ='B1.1 Re-Based Bill Det & Rates'!O22 -> 0 | I22: 0 | J22: 0 | K22: 0 | M22: =E22-I22 -> 14.75 | N22: =F22-J22 -> 0.0163 | O22: =G22-K22 -> 0
C23: ='B1.1 Re-Based Bill Det & Rates'!D23 -> Residential - Hensall | E23: ='B1.1 Re-Based Bill Det & Rates'!M23 -> 11.21 | F23: ='B1.1 Re-Based Bill Det & Rates'!N23 -> 0.012 | G23: ='B1.1 Re-Based Bill Det & Rates'!O23 -> 0 | I23: 0 | J23: 0 | K23: 0 | M23: =E23-I23 -> 11.21 | N23: =F23-J23 -> 0.012 | O23: =G23-K23 -> 0
C24: ='B1.1 Re-Based Bill Det & Rates'!D24 -> General Service Less Than 50 kW | E24: ='B1.1 Re-Based Bill Det & Rates'!M24 -> 29.05 | F24: ='B1.1 Re-Based Bill Det & Rates'!N24 -> 0.0145 | G24: ='B1.1 Re-Based Bill Det & Rates'!O24 -> 0 | I24: 0 | J24: 0 | K24: 0 | M24: 29.05 | N24: 0.0145 | O24: 0
C25: ='B1.1 Re-Based Bill Det & Rates'!D25 -> General Service 50 to 4,999 kW | E25: ='B1.1 Re-Based Bill Det & Rates'!M25 -> 220.21 | F25: ='B1.1 Re-Based Bill Det & Rates'!N25 -> 0 | G25: ='B1.1 Re-Based Bill Det & Rates'!O25 -> 2.2579 | I25: 0 | J25: 0 | K25: 0 | M25: 220.21 | N25: 0 | O25: 2.2579
C26: ='B1.1 Re-Based Bill Det & Rates'!D26 -> Large Use | E26: ='B1.1 Re-Based Bill Det & Rates'!M26 -> 10692.01 | F26: ='B1.1 Re-Based Bill Det & Rates'!N26 -> 0 | G26: ='B1.1 Re-Based Bill Det & Rates'!O26 -> 0.9922 | I26: 0 | J26: 0 | K26: 0 | M26: 10692.01 | N26: 0 | O26: 0.9922
C27: ='B1.1 Re-Based Bill Det & Rates'!D27 -> Unmetered Scattered Load | E27: ='B1.1 Re-Based Bill Det & Rates'!M27 -> 12.6 | F27: ='B1.1 Re-Based Bill Det & Rates'!N27 -> 0.0125 | G27: ='B1.1 Re-Based Bill Det & Rates'!O27 -> 0 | I27: 0 | J27: 0 | K27: 0 | M27: 12.6 | N27: 0.0125 | O27: 0
C28: ='B1.1 Re-Based Bill Det & Rates'!D28 -> Sentinel Lighting | E28: ='B1.1 Re-Based Bill Det & Rates'!M28 -> 1.41 | F28: ='B1.1 Re-Based Bill Det & Rates'!N28 -> 0 | G28: ='B1.1 Re-Based Bill Det & Rates'!O28 -> 7.3991 | I28: 0 | J28: 0 | K28: 0 | M28: 1.41 | N28: 0 | O28: 7.3991
C29: ='B1.1 Re-Based Bill Det & Rates'!D29 -> Street Lighting | E29: ='B1.1 Re-Based Bill Det & Rates'!M29 -> 0.77 | F29: ='B1.1 Re-Based Bill Det & Rates'!N29 -> 0 | G29: ='B1.1 Re-Based Bill Det & Rates'!O29 -> 3.4865 | I29: 0 | J29: 0 | K29: 0 | M29: 0.77 | N29: 0 | O29: 3.4865
C30: ='B1.1 Re-Based Bill Det & Rates'!D30 -> Rate Class 9 | E30: ='B1.1 Re-Based Bill Det & Rates'!M30 -> 0 | F30: ='B1.1 Re-Based Bill Det & Rates'!N30 -> 0 | G30: ='B1.1 Re-Based Bill Det & Rates'!O30 -> 0 | I30: 0 | J30: 0 | K30: 0 | M30: 0 | N30: 0 | O30: 0
C31: ='B1.1 Re-Based Bill Det & Rates'!D31 -> Rate Class 10 | E31: ='B1.1 Re-Based Bill Det & Rates'!M31 -> 0 | F31: ='B1.1 Re-Based Bill Det & Rates'!N31 -> 0 | G31: ='B1.1 Re-Based Bill Det & Rates'!O31 -> 0 | I31: 0 | J31: 0 | K31: 0 | M31: 0 | N31: 0 | O31: 0
C32: ='B1.1 Re-Based Bill Det & Rates'!D32 -> Rate Class 11 | E32: ='B1.1 Re-Based Bill Det & Rates'!M32 -> 0 | F32: ='B1.1 Re-Based Bill Det & Rates'!N32 -> 0 | G32: ='B1.1 Re-Based Bill Det & Rates'!O32 -> 0 | I32: 0 | J32: 0 | K32: 0 | M32: 0 | N32: 0 | O32: 0
C33: ='B1.1 Re-Based Bill Det & Rates'!D33 -> Rate Class 12 | E33: ='B1.1 Re-Based Bill Det & Rates'!M33 -> 0 | F33: ='B1.1 Re-Based Bill Det & Rates'!N33 -> 0 | G33: ='B1.1 Re-Based Bill Det & Rates'!O33 -> 0 | I33: 0 | J33: 0 | K33: 0 | M33: 0 | N33: 0 | O33: 0
C34: ='B1.1 Re-Based Bill Det & Rates'!D34 -> Rate Class 13 | E34: ='B1.1 Re-Based Bill Det & Rates'!M34 -> 0 | F34: ='B1.1 Re-Based Bill Det & Rates'!N34 -> 0 | G34: ='B1.1 Re-Based Bill Det & Rates'!O34 -> 0 | I34: 0 | J34: 0 | K34: 0 | M34: 0 | N34: 0 | O34: 0
C35: ='B1.1 Re-Based Bill Det & Rates'!D35 -> Rate Class 14 | E35: ='B1.1 Re-Based Bill Det & Rates'!M35 -> 0 | F35: ='B1.1 Re-Based Bill Det & Rates'!N35 -> 0 | G35: ='B1.1 Re-Based Bill Det & Rates'!O35 -> 0 | I35: 0 | J35: 0 | K35: 0 | M35: 0 | N35: 0 | O35: 0
C36: ='B1.1 Re-Based Bill Det & Rates'!D36 -> Rate Class 15 | E36: ='B1.1 Re-Based Bill Det & Rates'!M36 -> 0 | F36: ='B1.1 Re-Based Bill Det & Rates'!N36 -> 0 | G36: ='B1.1 Re-Based Bill Det & Rates'!O36 -> 0 | I36: 0 | J36: 0 | K36: 0 | M36: 0 | N36: 0 | O36: 0
C37: ='B1.1 Re-Based Bill Det & Rates'!D37 -> Rate Class 16 | E37: ='B1.1 Re-Based Bill Det & Rates'!M37 -> 0 | F37: ='B1.1 Re-Based Bill Det & Rates'!N37 -> 0 | G37: ='B1.1 Re-Based Bill Det & Rates'!O37 -> 0 | I37: 0 | J37: 0 | K37: 0 | M37: 0 | N37: 0 | O37: 0
C38: ='B1.1 Re-Based Bill Det & Rates'!D38 -> Rate Class 17 | E38: ='B1.1 Re-Based Bill Det & Rates'!M38 -> 0 | F38: ='B1.1 Re-Based Bill Det & Rates'!N38 -> 0 | G38: ='B1.1 Re-Based Bill Det & Rates'!O38 -> 0 | I38: 0 | J38: 0 | K38: 0 | M38: 0 | N38: 0 | O38: 0
C39: ='B1.1 Re-Based Bill Det & Rates'!D39 -> Rate Class 18 | E39: ='B1.1 Re-Based Bill Det & Rates'!M39 -> 0 | F39: ='B1.1 Re-Based Bill Det & Rates'!N39 -> 0 | G39: ='B1.1 Re-Based Bill Det & Rates'!O39 -> 0 | I39: 0 | J39: 0 | K39: 0 | M39: 0 | N39: 0 | O39: 0
C40: ='B1.1 Re-Based Bill Det & Rates'!D40 -> Rate Class 19 | E40: ='B1.1 Re-Based Bill Det & Rates'!M40 -> 0 | F40: ='B1.1 Re-Based Bill Det & Rates'!N40 -> 0 | G40: ='B1.1 Re-Based Bill Det & Rates'!O40 -> 0 | I40: 0 | J40: 0 | K40: 0 | M40: 0 | N40: 0 | O40: 0
C41: ='B1.1 Re-Based Bill Det & Rates'!D41 -> Rate Class 20 | E41: ='B1.1 Re-Based Bill Det & Rates'!M41 -> 0 | F41: ='B1.1 Re-Based Bill Det & Rates'!N41 -> 0 | G41: ='B1.1 Re-Based Bill Det & Rates'!O41 -> 0 | I41: 0 | J41: 0 | K41: 0 | M41: 0 | N41: 0 | O41: 0
C42: ='B1.1 Re-Based Bill Det & Rates'!D42 -> Rate Class 21 | E42: ='B1.1 Re-Based Bill Det & Rates'!M42 -> 0 | F42: ='B1.1 Re-Based Bill Det & Rates'!N42 -> 0 | G42: ='B1.1 Re-Based Bill Det & Rates'!O42 -> 0 | I42: 0 | J42: 0 | K42: 0 | M42: 0 | N42: 0 | O42: 0
C43: ='B1.1 Re-Based Bill Det & Rates'!D43 -> Rate Class 22 | E43: ='B1.1 Re-Based Bill Det & Rates'!M43 -> 0 | F43: ='B1.1 Re-Based Bill Det & Rates'!N43 -> 0 | G43: ='B1.1 Re-Based Bill Det & Rates'!O43 -> 0 | I43: 0 | J43: 0 | K43: 0 | M43: 0 | N43: 0 | O43: 0
C44: ='B1.1 Re-Based Bill Det & Rates'!D44 -> Rate Class 23 | E44: ='B1.1 Re-Based Bill Det & Rates'!M44 -> 0 | F44: ='B1.1 Re-Based Bill Det & Rates'!N44 -> 0 | G44: ='B1.1 Re-Based Bill Det & Rates'!O44 -> 0 | I44: 0 | J44: 0 | K44: 0 | M44: 0 | N44: 0 | O44: 0
C45: ='B1.1 Re-Based Bill Det & Rates'!D45 -> Rate Class 24 | E45: ='B1.1 Re-Based Bill Det & Rates'!M45 -> 0 | F45: ='B1.1 Re-Based Bill Det & Rates'!N45 -> 0 | G45: ='B1.1 Re-Based Bill Det & Rates'!O45 -> 0 | I45: 0 | J45: 0 | K45: 0 | M45: 0 | N45: 0 | O45: 0
C46: ='B1.1 Re-Based Bill Det & Rates'!D46 -> Rate Class 25 | E46: ='B1.1 Re-Based Bill Det & Rates'!M46 -> 0 | F46: ='B1.1 Re-Based Bill Det & Rates'!N46 -> 0 | G46: ='B1.1 Re-Based Bill Det & Rates'!O46 -> 0 | I46: 0 | J46: 0 | K46: 0 | M46: 0 | N46: 0 | O46: 0

Sheet B1.3 Re-Based Rev From Rates
C10: ='Z1.0 OEB Control Sheet'!C6 -> Calculated Re-Based Revenue From Rates
C13: Last COS Re-based Year | F13: ='A1.1 LDC Information'!D32 -> 2010
C15: Last COS OEB Application Number | F15: ='A1.1 LDC Information'!D34 -> EB-2009-0263
C20: Rate Class | E20: Re-based Billed Customers or Connections | F20: Re-based Billed kWh | G20: Re-based Billed kW | I20: Re-based Base Service Charge | J20: Re-based Base Distribution Volumetric Rate kWh | K20: Re-based Base Distribution Volumetric Rate kW | M20: Service Charge Revenue | N20: Distribution Volumetric Rate Revenue kWh | O20: Distribution Volumetric Rate Revenue kW | P20: Revenue Requirement from Rates | R20: Service Charge % Revenue | S20: Distribution Volumetric Rate % Revenue kWh | T20: Distribution Volumetric Rate % Revenue kW | U20: Total % Revenue
E21: A | F21: B | G21: C | I21: D | J21: E | K21: F | M21: G = A * D *12 | N21: H = B * E | O21: I = C * F | P21: J = G + H + I | R21: K = G / J | S21: L = H / J | T21: M = I / J | U21: N = J / R
C22: ='B1.1 Re-Based Bill Det & Rates'!D22 -> Residential | E22: ='B1.1 Re-Based Bill Det & Rates'!I22 -> 17115 | F22: ='B1.1 Re-Based Bill Det & Rates'!J22 -> 141132375 | G22: ='B1.1 Re-Based Bill Det & Rates'!K22 -> 0 | I22: ='B1.2 Removal of Rate Adders'!M22 -> 14.75 | J22: ='B1.2 Removal of Rate Adders'!N22 -> 0.0163 | K22: ='B1.2 Removal of Rate Adders'!O22 -> 0 | M22: =IF(ISERROR(E22*I22*12),0,E22*I22*12) -> 3029355 | N22: =IF(ISERROR(F22*J22),0,F22*J22) -> 2300457.712 | O22: =IF(ISERROR(G22*K22),0,G22*K22) -> 0 | P22: =SUM(M22:O22) -> 5329812.713 | R22: =IF(ISERROR(M22/P22),"",M22/P22) -> 0.568379259 | S22: =IF(ISERROR(N22/P22),"",N22/P22) -> 0.431620741 | T22: =IF(ISERROR(O22/P22),"",O22/P22) -> 0 | U22: =IF(ISERROR(P22/P$47),"",P22/P$47) -> 0.5329364054
C23: ='B1.1 Re-Based Bill Det & Rates'!D23 -> Residential - Hensall | E23: ='B1.1 Re-Based Bill Det & Rates'!I23 -> 413 | F23: ='B1.1 Re-Based Bill Det & Rates'!J23 -> 4143109 | G23: ='B1.1 Re-Based Bill Det & Rates'!K23 -> 0 | I23: ='B1.2 Removal of Rate Adders'!M23 -> 11.21 | J23: ='B1.2 Removal of Rate Adders'!N23 -> 0.012 | K23: ='B1.2 Removal of Rate Adders'!O23 -> 0 | M23: =IF(ISERROR(E23*I23*12),0,E23*I23*12) -> 55556.76 | N23: =IF(ISERROR(F23*J23),0,F23*J23) -> 49717.308 | O23: =IF(ISERROR(G23*K23),0,G23*K23) -> 0 | P23: =SUM(M23:O23) -> 105274.068 | R23: =IF(ISERROR(M23/P23),"",M23/P23) -> 0.5277345224 | S23: =IF(ISERROR(N23/P23),"",N23/P23) -> 0.4722654776 | T23: =IF(ISERROR(O23/P23),"",O23/P23) -> 0 | U23: =IF(ISERROR(P23/P$47),"",P23/P$47) -> 0.01052652061
C24: ='B1.1 Re-Based Bill Det & Rates'!D24 -> General Service Less Than 50 kW | E24: ='B1.1 Re-Based Bill Det & Rates'!I24 -> 1968 | F24: ='B1.1 Re-Based Bill Det & Rates'!J24 -> 67469308 | G24: ='B1.1 Re-Based Bill Det & Rates'!K24 -> 0 | I24: ='B1.2 Removal of Rate Adders'!M24 -> 29.05 | J24: ='B1.2 Removal of Rate Adders'!N24 -> 0.0145 | K24: ='B1.2 Removal of Rate Adders'!O24 -> 0 | M24: 686044.8 | N24: 978304.966 | O24: 0 | P24: 1664349.766 | R24: 0.4121998957 | S24: 0.5878001043 | T24: 0 | U24: 0.1664209663
C25: ='B1.1 Re-Based Bill Det & Rates'!D25 -> General Service 50 to 4,999 kW | E25: ='B1.1 Re-Based Bill Det & Rates'!I25 -> 221 | F25: ='B1.1 Re-Based Bill Det & Rates'!J25 -> 316941804 | G25: ='B1.1 Re-Based Bill Det & Rates'!K25 -> 797792 | I25: ='B1.2 Removal of Rate Adders'!M25 -> 220.21 | J25: ='B1.2 Removal of Rate Adders'!N25 -> 0 | K25: ='B1.2 Removal of Rate Adders'!O25 -> 2.2579 | M25: 583996.92 | N25: 0 | O25: 1801334.557 | P25: 2385331.477 | R25: 0.244828413 | S25: 0 | T25: 0.755171587 | U25: 0.2385130682
C26: ='B1.1 Re-Based Bill Det & Rates'!D26 -> Large Use | E26: ='B1.1 Re-Based Bill Det & Rates'!I26 -> 2 | F26: ='B1.1 Re-Based Bill Det & Rates'!J26 -> 65544852 | G26: ='B1.1 Re-Based Bill Det & Rates'!K26 -> 128687 | I26: ='B1.2 Removal of Rate Adders'!M26 -> 10692.01 | J26: ='B1.2 Removal of Rate Adders'!N26 -> 0 | K26: ='B1.2 Removal of Rate Adders'!O26 -> 0.9922 | M26: 256608.24 | N26: 0 | O26: 127683.2414 | P26: 384291.4814 | R26: 0.6677437633 | S26: 0 | T26: 0.3322562367 | U26: 0.03842591321
C27: ='B1.1 Re-Based Bill Det & Rates'!D27 -> Unmetered Scattered Load | E27: ='B1.1 Re-Based Bill Det & Rates'!I27 -> 156 | F27: ='B1.1 Re-Based Bill Det & Rates'!J27 -> 629732 | G27: ='B1.1 Re-Based Bill Det & Rates'!K27 -> 0 | I27: ='B1.2 Removal of Rate Adders'!M27 -> 12.6 | J27: ='B1.2 Removal of Rate Adders'!N27 -> 0.0125 | K27: ='B1.2 Removal of Rate Adders'!O27 -> 0 | M27: 23587.2 | N27: 7871.65 | O27: 0 | P27: 31458.85 | R27: 0.7497794738 | S27: 0.2502205262 | T27: 0 | U27: 0.003145620182
C28: ='B1.1 Re-Based Bill Det & Rates'!D28 -> Sentinel Lighting | E28: ='B1.1 Re-Based Bill Det & Rates'!I28 -> 83 | F28: ='B1.1 Re-Based Bill Det & Rates'!J28 -> 234690 | G28: ='B1.1 Re-Based Bill Det & Rates'!K28 -> 679 | I28: ='B1.2 Removal of Rate Adders'!M28 -> 1.41 | J28: ='B1.2 Removal of Rate Adders'!N28 -> 0 | K28: ='B1.2 Removal of Rate Adders'!O28 -> 7.3991 | M28: 1404.36 | N28: 0 | O28: 5023.9889 | P28: 6428.3489 | R28: 0.2184635622 | S28: 0 | T28: 0.7815364378 | U28: 0.0006427807768
C29: ='B1.1 Re-Based Bill Det & Rates'!D29 -> Street Lighting | E29: ='B1.1 Re-Based Bill Det & Rates'!I29 -> 5915 | F29: ='B1.1 Re-Based Bill Det & Rates'!J29 -> 3904130 | G29: ='B1.1 Re-Based Bill Det & Rates'!K29 -> 11255 | I29: ='B1.2 Removal of Rate Adders'!M29 -> 0.77 | J29: ='B1.2 Removal of Rate Adders'!N29 -> 0 | K29: ='B1.2 Removal of Rate Adders'!O29 -> 3.4865 | M29: 54654.6 | N29: 0 | O29: 39240.5575 | P29: 93895.1575 | R29: 0.5820811366 | S29: 0 | T29: 0.4179188634 | U29: 0.00938872535
C30: ='B1.1 Re-Based Bill Det & Rates'!D30 -> Rate Class 9 | M30: 0 | N30: 0 | O30: 0 | P30: 0 | U30: 0
C31: ='B1.1 Re-Based Bill Det & Rates'!D31 -> Rate Class 10 | M31: 0 | N31: 0 | O31: 0 | P31: 0 | U31: 0
C32: ='B1.1 Re-Based Bill Det & Rates'!D32 -> Rate Class 11 | M32: 0 | N32: 0 | O32: 0 | P32: 0 | U32: 0
C33: ='B1.1 Re-Based Bill Det & Rates'!D33 -> Rate Class 12 | M33: 0 | N33: 0 | O33: 0 | P33: 0 | U33: 0
C34: ='B1.1 Re-Based Bill Det & Rates'!D34 -> Rate Class 13 | M34: 0 | N34: 0 | O34: 0 | P34: 0 | U34: 0
C35: ='B1.1 Re-Based Bill Det & Rates'!D35 -> Rate Class 14 | M35: 0 | N35: 0 | O35: 0 | P35: 0 | U35: 0
C36: ='B1.1 Re-Based Bill Det & Rates'!D36 -> Rate Class 15 | M36: 0 | N36: 0 | O36: 0 | P36: 0 | U36: 0
C37: ='B1.1 Re-Based Bill Det & Rates'!D37 -> Rate Class 16 | M37: 0 | N37: 0 | O37: 0 | P37: 0 | U37: 0
C38: ='B1.1 Re-Based Bill Det & Rates'!D38 -> Rate Class 17 | M38: 0 | N38: 0 | O38: 0 | P38: 0 | U38: 0
C39: ='B1.1 Re-Based Bill Det & Rates'!D39 -> Rate Class 18 | M39: 0 | N39: 0 | O39: 0 | P39: 0 | U39: 0
C40: ='B1.1 Re-Based Bill Det & Rates'!D40 -> Rate Class 19 | M40: 0 | N40: 0 | O40: 0 | P40: 0 | U40: 0
C41: ='B1.1 Re-Based Bill Det & Rates'!D41 -> Rate Class 20 | M41: 0 | N41: 0 | O41: 0 | P41: 0 | U41: 0
C42: ='B1.1 Re-Based Bill Det & Rates'!D42 -> Rate Class 21 | M42: 0 | N42: 0 | O42: 0 | P42: 0 | U42: 0
C43: ='B1.1 Re-Based Bill Det & Rates'!D43 -> Rate Class 22 | M43: 0 | N43: 0 | O43: 0 | P43: 0 | U43: 0
C44: ='B1.1 Re-Based Bill Det & Rates'!D44 -> Rate Class 23 | M44: 0 | N44: 0 | O44: 0 | P44: 0 | U44: 0
C45: ='B1.1 Re-Based Bill Det & Rates'!D45 -> Rate Class 24 | M45: 0 | N45: 0 | O45: 0 | P45: 0 | U45: 0
C46: ='B1.1 Re-Based Bill Det & Rates'!D46 -> Rate Class 25 | M46: 0 | N46: 0 | O46: 0 | P46: 0 | U46: 0
M47: =SUM(M22:M46) -> 4691207.88 | N47: =SUM(N22:N46) -> 3336351.637 | O47: =SUM(O22:O46) -> 1973282.345 | P47: =SUM(P22:P46) -> 10000841.86 | U47: =SUM(U22:U46) -> 1
M48: O | N48: P | O48: Q | P48: R

Sheet B1.4 Re-Based Rev Req
C10: ='Z1.0 OEB Control Sheet'!C7 -> Detailed Re-Based Revenue From Rates
C13: Last COS Re-based Year | E13: ='A1.1 LDC Information'!D32 -> 2010
C15: Last COS OEB Application Number | E15: ='A1.1 LDC Information'!D34 -> EB-2009-0263
C20: Applicants Rate Base | E20: Last Rate Re-based Amount | I20: OEB Audit
C21: Average Net Fixed Assets | I21: ='Z1.0 OEB Control Sheet'!F6 -> No
C22: Gross Fixed Assets - Re-based Opening | E22: 73469244 | F22: A
C23: Add: CWIP Re-based Opening | E23: 3357000 | F23: B
C24: Re-based Capital Additions | F24: C
C25: Re-based Capital Disposals | F25: D
C26: Re-based Capital Retirements | F26: E
C27: Deduct: CWIP Re-based Closing | F27: F
C28: Gross Fixed Assets - Re-based Closing | E28: =SUM(E22:E27) -> 76826244 | F28: G
C29: Average Gross Fixed Assets | G29: =(E22+E28)/2 -> 75147744 | H29: H = ( A + G ) / 2
C31: Accumulated Depreciation - Re-based Opening | E31: 41462401 | F31: I
C32: Re-based Depreciation Expense | E32: 2787375 | F32: J | K32: aaa
C33: Re-based Disposals | F33: K
C34: Re-based Retirements | F34: L
C35: Accumulated Depreciation - Re-based Closing | E35: =SUM(E31:E34) -> 44249776 | F35: M
C36: Average Accumulated Depreciation | G36: =SUM(E31,E35)/2 -> 42856088.5 | H36: N = ( I + M ) / 2
C38: Average Net Fixed Assets | G38: =G29-G36 -> 32291655.5 | H38: O = H - N
C40: Working Capital Allowance
C41: Working Capital Allowance Base | E41: 52239484 | F41: P
C42: Working Capital Allowance Rate | E42: 0.15 | F42: Q
C43: Working Capital Allowance | G43: =E41*E42 -> 7835922.6 | H43: R = P * Q
C45: Rate Base | G45: =SUM(G38,G43) -> 40127578.1 | H45: S = O + R
C47: Return on Rate Base
C48: Deemed ShortTerm Debt % | E48: 0.04 | F48: T | G48: =G45*E48 -> 1605103.124 | H48: W = S * T
C49: Deemed Long Term Debt % | E49: 0.56 | F49: U | G49: =G45*E49 -> 22471443.74 | H49: X = S * U
C50: Deemed Equity % | E50: =1-E48-E49 -> 0.4 | F50: V | G50: =G45*E50 -> 16051031.24 | H50: Y = S * V
C52: Short Term Interest | E52: 0.0207 | F52: Z | G52: =G48*E52 -> 33225.63467 | H52: AC = W * Z
C53: Long Term Interest | E53: 0.05682152 | F53: AA | G53: =G49*E53 -> 1276861.59 | H53: AD = X * AA
C54: Return on Equity | E54: 0.0985 | F54: AB | G54: =G50*E54 -> 1581026.577 | H54: AE = Y * AB
C55: Return on Rate Base | G55: =SUM(G52:G54) -> 2891113.801 | H55: AF = AC + AD + AE
C57: Distribution Expenses
C58: OM&A Expenses | E58: 3930487 | F58: AG
C59: Amortization | E59: 2568039 | F59: AH
C60: Ontario Capital Tax (F1.1 Z-Factor Tax Changes) | E60: 20188 | F60: AI
C61: Grossed Up PILs (F1.1 Z-Factor Tax Changes) | E61: 848366 | F61: AJ
C62: Low Voltage | F62: AK
C63: Transformer Allowance | E63: 390940 | F63: AL
C64: Property Tax | E64: 30000 | F64: AM
F65: AN
F66: AO
G67: =SUM(E58:E66) -> 7788020 | H67: AP = SUM ( AG : AO )
C69: Revenue Offsets
C70: Specific Service Charges | E70: -178810 | F70: AQ
C71: Late Payment Charges | E71: -133335 | F71: AR
C72: Other Distribution Income | E72: -204175 | F72: AS
C73: Other Income and Deductions | E73: -161596 | F73: AT | G73: =SUM(E70:E73) -> -677916 | H73: AU = SUM ( AQ : AT )
C75: Revenue Requirement from Distribution Rates | G75: =SUM(G73,G67,G55) -> 10001217.8 | H75: AV = AF + AP + AU
C77: Rate Classes Revenue
C78: Rate Classes Revenue - Total (B1.1 Re-based Revenue - Gen) | G78: ='B1.3 Re-Based Rev From Rates'!P47 -> 10000841.86 | H78: AW
C80: Difference | G80: =G75-G78 -> 375.9403808 | H80: AZ = AV - AW
C82: Difference (Percentage - should be less than 1%) | G82: =IF(ISERROR(G80/G78),0,G80/G78) -> 3.759087345e-05 | H82: BA = AZ / AW

Sheet C1.1 Ld Act-Mst Rcent Yr
C10: ='Z1.0 OEB Control Sheet'!C9 -> Load Actual - Most Recent Year
C12: =MostRecentYear('A1.1 LDC Information'!D32) -> Please enter 2009 Audited RRR on this page
B20: Control | C20: Rate Class | D20: Fixed Metric | E20: Vol Metric | F20: OEB Audit | H20: Billed Customers or Connections | I20: Billed kWh | J20: Billed kW | L20: Base Service Charge | M20: Base Distribution Volumetric Rate kWh | N20: Base Distribution Volumetric Rate kW | P20: Service Charge Revenue | Q20: Distribution Volumetric Rate Revenue kWh | R20: Distribution Volumetric Rate Revenue kW | S20: Total Revenue by Rate Class
H21: A | I21: B | J21: C | L21: D | M21: E | N21: F | P21: G = A * D * 12 | Q21: H = B * E | R21: I = C * F | S21: J = G + H + I
B22: 1 | C22: ='B1.1 Re-Based Bill Det & Rates'!D22 -> Residential | D22: ='B1.1 Re-Based Bill Det & Rates'!E22 -> Customer | E22: ='B1.1 Re-Based Bill Det & Rates'!F22 -> kWh | H22: 17243 | I22: =137105741+4713 -> 137110454 | J22: 0 | L22: ='B1.3 Re-Based Rev From Rates'!I22 -> 14.75 | M22: ='B1.3 Re-Based Rev From Rates'!J22 -> 0.0163 | N22: ='B1.3 Re-Based Rev From Rates'!K22 -> 0 | P22: =H22*L22*12 -> 3052011 | Q22: =I22*M22 -> 2234900.4 | R22: =J22*N22 -> 0 | S22: =SUM(P22:R22) -> 5286911.4
B23: 2 | C23: ='B1.1 Re-Based Bill Det & Rates'!D23 -> Residential - Hensall | D23: ='B1.1 Re-Based Bill Det & Rates'!E23 -> Customer | E23: ='B1.1 Re-Based Bill Det & Rates'!F23 -> kWh | H23: 410 | I23: 3814545 | J23: 0 | L23: ='B1.3 Re-Based Rev From Rates'!I23 -> 11.21 | M23: ='B1.3 Re-Based Rev From Rates'!J23 -> 0.012 | N23: ='B1.3 Re-Based Rev From Rates'!K23 -> 0 | P23: =H23*L23*12 -> 55153.2 | Q23: =I23*M23 -> 45774.54 | R23: 0 | S23: =SUM(P23:R23) -> 100927.74
B24: 3 | C24: ='B1.1 Re-Based Bill Det & Rates'!D24 -> General Service Less Than 50 kW | D24: ='B1.1 Re-Based Bill Det & Rates'!E24 -> Customer | E24: ='B1.1 Re-Based Bill Det & Rates'!F24 -> kWh | H24: 2000 | I24: 63567429 | J24: 0 | L24: ='B1.3 Re-Based Rev From Rates'!I24 -> 29.05 | M24: ='B1.3 Re-Based Rev From Rates'!J24 -> 0.0145 | N24: ='B1.3 Re-Based Rev From Rates'!K24 -> 0 | P24: 697200 | Q24: 921727.7205 | R24: 0 | S24: 1618927.721
B25: 4 | C25: ='B1.1 Re-Based Bill Det & Rates'!D25 -> General Service 50 to 4,999 kW | D25: ='B1.1 Re-Based Bill Det & Rates'!E25 -> Customer | E25: ='B1.1 Re-Based Bill Det & Rates'!F25 -> kW | H25: 231 | I25: 342397426 | J25: 893506 | L25: ='B1.3 Re-Based Rev From Rates'!I25 -> 220.21 | M25: ='B1.3 Re-Based Rev From Rates'!J25 -> 0 | N25: ='B1.3 Re-Based Rev From Rates'!K25 -> 2.2579 | P25: 610422.12 | Q25: 0 | R25: 2017447.197 | S25: 2627869.317
B26: 5 | C26: ='B1.1 Re-Based Bill Det & Rates'!D26 -> Large Use | D26: ='B1.1 Re-Based Bill Det & Rates'!E26 -> Customer | E26: ='B1.1 Re-Based Bill Det & Rates'!F26 -> kW | H26: 1 | I26: 30589560 | J26: 59443 | L26: ='B1.3 Re-Based Rev From Rates'!I26 -> 10692.01 | M26: ='B1.3 Re-Based Rev From Rates'!J26 -> 0 | N26: ='B1.3 Re-Based Rev From Rates'!K26 -> 0.9922 | P26: 128304.12 | Q26: 0 | R26: 58979.3446 | S26: 187283.4646
B27: 6 | C27: ='B1.1 Re-Based Bill Det & Rates'!D27 -> Unmetered Scattered Load | D27: ='B1.1 Re-Based Bill Det & Rates'!E27 -> Connection | E27: ='B1.1 Re-Based Bill Det & Rates'!F27 -> kWh | H27: 233 | I27: 666441 | J27: 0 | L27: ='B1.3 Re-Based Rev From Rates'!I27 -> 12.6 | M27: ='B1.3 Re-Based Rev From Rates'!J27 -> 0.0125 | N27: ='B1.3 Re-Based Rev From Rates'!K27 -> 0 | P27: 35229.6 | Q27: 8330.5125 | R27: 0 | S27: 43560.1125
B28: 7 | C28: ='B1.1 Re-Based Bill Det & Rates'!D28 -> Sentinel Lighting | D28: ='B1.1 Re-Based Bill Det & Rates'!E28 -> Connection | E28: ='B1.1 Re-Based Bill Det & Rates'!F28 -> kW | H28: 64 | I28: 200336 | J28: 556 | L28: ='B1.3 Re-Based Rev From Rates'!I28 -> 1.41 | M28: ='B1.3 Re-Based Rev From Rates'!J28 -> 0 | N28: ='B1.3 Re-Based Rev From Rates'!K28 -> 7.3991 | P28: 1082.88 | Q28: 0 | R28: 4113.8996 | S28: 5196.7796 | U28: aaa
B29: 8 | C29: ='B1.1 Re-Based Bill Det & Rates'!D29 -> Street Lighting | D29: ='B1.1 Re-Based Bill Det & Rates'!E29 -> Connection | E29: ='B1.1 Re-Based Bill Det & Rates'!F29 -> kW | H29: 6240 | I29: 4206123 | J29: 11209 | L29: ='B1.3 Re-Based Rev From Rates'!I29 -> 0.77 | M29: ='B1.3 Re-Based Rev From Rates'!J29 -> 0 | N29: ='B1.3 Re-Based Rev From Rates'!K29 -> 3.4865 | P29: 57657.6 | Q29: 0 | R29: 39080.1785 | S29: 96737.7785
B30: 9 | C30: ='B1.1 Re-Based Bill Det & Rates'!D30 -> Rate Class 9 | D30: ='B1.1 Re-Based Bill Det & Rates'!E30 -> NA | E30: ='B1.1 Re-Based Bill Det & Rates'!F30 -> NA | H30: 0 | I30: 0 | J30: 0 | L30: ='B1.3 Re-Based Rev From Rates'!I30 -> 0 | M30: ='B1.3 Re-Based Rev From Rates'!J30 -> 0 | N30: ='B1.3 Re-Based Rev From Rates'!K30 -> 0 | P30: 0 | Q30: 0 | R30: 0 | S30: 0
B31: 10 | C31: ='B1.1 Re-Based Bill Det & Rates'!D31 -> Rate Class 10 | D31: ='B1.1 Re-Based Bill Det & Rates'!E31 -> NA | E31: ='B1.1 Re-Based Bill Det & Rates'!F31 -> NA | H31: 0 | I31: 0 | J31: 0 | L31: ='B1.3 Re-Based Rev From Rates'!I31 -> 0 | M31: ='B1.3 Re-Based Rev From Rates'!J31 -> 0 | N31: ='B1.3 Re-Based Rev From Rates'!K31 -> 0 | P31: 0 | Q31: 0 | R31: 0 | S31: 0
B32: 11 | C32: ='B1.1 Re-Based Bill Det & Rates'!D32 -> Rate Class 11 | D32: ='B1.1 Re-Based Bill Det & Rates'!E32 -> NA | E32: ='B1.1 Re-Based Bill Det & Rates'!F32 -> NA | H32: 0 | I32: 0 | J32: 0 | L32: ='B1.3 Re-Based Rev From Rates'!I32 -> 0 | M32: ='B1.3 Re-Based Rev From Rates'!J32 -> 0 | N32: ='B1.3 Re-Based Rev From Rates'!K32 -> 0 | P32: 0 | Q32: 0 | R32: 0 | S32: 0
B33: 12 | C33: ='B1.1 Re-Based Bill Det & Rates'!D33 -> Rate Class 12 | D33: ='B1.1 Re-Based Bill Det & Rates'!E33 -> NA | E33: ='B1.1 Re-Based Bill Det & Rates'!F33 -> NA | H33: 0 | I33: 0 | J33: 0 | L33: ='B1.3 Re-Based Rev From Rates'!I33 -> 0 | M33: ='B1.3 Re-Based Rev From Rates'!J33 -> 0 | N33: ='B1.3 Re-Based Rev From Rates'!K33 -> 0 | P33: 0 | Q33: 0 | R33: 0 | S33: 0
B34: 13 | C34: ='B1.1 Re-Based Bill Det & Rates'!D34 -> Rate Class 13 | D34: ='B1.1 Re-Based Bill Det & Rates'!E34 -> NA | E34: ='B1.1 Re-Based Bill Det & Rates'!F34 -> NA | H34: 0 | I34: 0 | J34: 0 | L34: ='B1.3 Re-Based Rev From Rates'!I34 -> 0 | M34: ='B1.3 Re-Based Rev From Rates'!J34 -> 0 | N34: ='B1.3 Re-Based Rev From Rates'!K34 -> 0 | P34: 0 | Q34: 0 | R34: 0 | S34: 0
B35: 14 | C35: ='B1.1 Re-Based Bill Det & Rates'!D35 -> Rate Class 14 | D35: ='B1.1 Re-Based Bill Det & Rates'!E35 -> NA | E35: ='B1.1 Re-Based Bill Det & Rates'!F35 -> NA | H35: 0 | I35: 0 | J35: 0 | L35: ='B1.3 Re-Based Rev From Rates'!I35 -> 0 | M35: ='B1.3 Re-Based Rev From Rates'!J35 -> 0 | N35: ='B1.3 Re-Based Rev From Rates'!K35 -> 0 | P35: 0 | Q35: 0 | R35: 0 | S35: 0
B36: 15 | C36: ='B1.1 Re-Based Bill Det & Rates'!D36 -> Rate Class 15 | D36: ='B1.1 Re-Based Bill Det & Rates'!E36 -> NA | E36: ='B1.1 Re-Based Bill Det & Rates'!F36 -> NA | H36: 0 | I36: 0 | J36: 0 | L36: ='B1.3 Re-Based Rev From Rates'!I36 -> 0 | M36: ='B1.3 Re-Based Rev From Rates'!J36 -> 0 | N36: ='B1.3 Re-Based Rev From Rates'!K36 -> 0 | P36: 0 | Q36: 0 | R36: 0 | S36: 0
B37: 16 | C37: ='B1.1 Re-Based Bill Det & Rates'!D37 -> Rate Class 16 | D37: ='B1.1 Re-Based Bill Det & Rates'!E37 -> NA | E37: ='B1.1 Re-Based Bill Det & Rates'!F37 -> NA | H37: 0 | I37: 0 | J37: 0 | L37: ='B1.3 Re-Based Rev From Rates'!I37 -> 0 | M37: ='B1.3 Re-Based Rev From Rates'!J37 -> 0 | N37: ='B1.3 Re-Based Rev From Rates'!K37 -> 0 | P37: 0 | Q37: 0 | R37: 0 | S37: 0
B38: 17 | C38: ='B1.1 Re-Based Bill Det & Rates'!D38 -> Rate Class 17 | D38: ='B1.1 Re-Based Bill Det & Rates'!E38 -> NA | E38: ='B1.1 Re-Based Bill Det & Rates'!F38 -> NA | H38: 0 | I38: 0 | J38: 0 | L38: ='B1.3 Re-Based Rev From Rates'!I38 -> 0 | M38: ='B1.3 Re-Based Rev From Rates'!J38 -> 0 | N38: ='B1.3 Re-Based Rev From Rates'!K38 -> 0 | P38: 0 | Q38: 0 | R38: 0 | S38: 0
B39: 18 | C39: ='B1.1 Re-Based Bill Det & Rates'!D39 -> Rate Class 18 | D39: ='B1.1 Re-Based Bill Det & Rates'!E39 -> NA | E39: ='B1.1 Re-Based Bill Det & Rates'!F39 -> NA | H39: 0 | I39: 0 | J39: 0 | L39: ='B1.3 Re-Based Rev From Rates'!I39 -> 0 | M39: ='B1.3 Re-Based Rev From Rates'!J39 -> 0 | N39: ='B1.3 Re-Based Rev From Rates'!K39 -> 0 | P39: 0 | Q39: 0 | R39: 0 | S39: 0
B40: 19 | C40: ='B1.1 Re-Based Bill Det & Rates'!D40 -> Rate Class 19 | D40: ='B1.1 Re-Based Bill Det & Rates'!E40 -> NA | E40: ='B1.1 Re-Based Bill Det & Rates'!F40 -> NA | H40: 0 | I40: 0 | J40: 0 | L40: ='B1.3 Re-Based Rev From Rates'!I40 -> 0 | M40: ='B1.3 Re-Based Rev From Rates'!J40 -> 0 | N40: ='B1.3 Re-Based Rev From Rates'!K40 -> 0 | P40: 0 | Q40: 0 | R40: 0 | S40: 0
B41: 20 | C41: ='B1.1 Re-Based Bill Det & Rates'!D41 -> Rate Class 20 | D41: ='B1.1 Re-Based Bill Det & Rates'!E41 -> NA | E41: ='B1.1 Re-Based Bill Det & Rates'!F41 -> NA | H41: 0 | I41: 0 | J41: 0 | L41: ='B1.3 Re-Based Rev From Rates'!I41 -> 0 | M41: ='B1.3 Re-Based Rev From Rates'!J41 -> 0 | N41: ='B1.3 Re-Based Rev From Rates'!K41 -> 0 | P41: 0 | Q41: 0 | R41: 0 | S41: 0
B42: 21 | C42: ='B1.1 Re-Based Bill Det & Rates'!D42 -> Rate Class 21 | D42: ='B1.1 Re-Based Bill Det & Rates'!E42 -> NA | E42: ='B1.1 Re-Based Bill Det & Rates'!F42 -> NA | H42: 0 | I42: 0 | J42: 0 | L42: ='B1.3 Re-Based Rev From Rates'!I42 -> 0 | M42: ='B1.3 Re-Based Rev From Rates'!J42 -> 0 | N42: ='B1.3 Re-Based Rev From Rates'!K42 -> 0 | P42: 0 | Q42: 0 | R42: 0 | S42: 0
B43: 22 | C43: ='B1.1 Re-Based Bill Det & Rates'!D43 -> Rate Class 22 | D43: ='B1.1 Re-Based Bill Det & Rates'!E43 -> NA | E43: ='B1.1 Re-Based Bill Det & Rates'!F43 -> NA | H43: 0 | I43: 0 | J43: 0 | L43: ='B1.3 Re-Based Rev From Rates'!I43 -> 0 | M43: ='B1.3 Re-Based Rev From Rates'!J43 -> 0 | N43: ='B1.3 Re-Based Rev From Rates'!K43 -> 0 | P43: 0 | Q43: 0 | R43: 0 | S43: 0
B44: 23 | C44: ='B1.1 Re-Based Bill Det & Rates'!D44 -> Rate Class 23 | D44: ='B1.1 Re-Based Bill Det & Rates'!E44 -> NA | E44: ='B1.1 Re-Based Bill Det & Rates'!F44 -> NA | H44: 0 | I44: 0 | J44: 0 | L44: ='B1.3 Re-Based Rev From Rates'!I44 -> 0 | M44: ='B1.3 Re-Based Rev From Rates'!J44 -> 0 | N44: ='B1.3 Re-Based Rev From Rates'!K44 -> 0 | P44: 0 | Q44: 0 | R44: 0 | S44: 0
B45: 24 | C45: ='B1.1 Re-Based Bill Det & Rates'!D45 -> Rate Class 24 | D45: ='B1.1 Re-Based Bill Det & Rates'!E45 -> NA | E45: ='B1.1 Re-Based Bill Det & Rates'!F45 -> NA | H45: 0 | I45: 0 | J45: 0 | L45: ='B1.3 Re-Based Rev From Rates'!I45 -> 0 | M45: ='B1.3 Re-Based Rev From Rates'!J45 -> 0 | N45: ='B1.3 Re-Based Rev From Rates'!K45 -> 0 | P45: 0 | Q45: 0 | R45: 0 | S45: 0
B46: 25 | C46: ='B1.1 Re-Based Bill Det & Rates'!D46 -> Rate Class 25 | D46: ='B1.1 Re-Based Bill Det & Rates'!E46 -> NA | E46: ='B1.1 Re-Based Bill Det & Rates'!F46 -> NA | H46: 0 | I46: 0 | J46: 0 | L46: ='B1.3 Re-Based Rev From Rates'!I46 -> 0 | M46: ='B1.3 Re-Based Rev From Rates'!J46 -> 0 | N46: ='B1.3 Re-Based Rev From Rates'!K46 -> 0 | P46: 0 | Q46: 0 | R46: 0 | S46: 0
P47: =SUM(P22:P46) -> 4637060.52 | Q47: =SUM(Q22:Q46) -> 3210733.173 | R47: =SUM(R22:R46) -> 2119620.62 | S47: =SUM(S22:S46) -> 9967414.313

Sheet F1.2 CalcTaxChg RRider OptA FV (hidden)
C2: ='A1.1 LDC Information'!C2 -> 0
C3: ='A1.1 LDC Information'!C3 -> 0
C4: ='A1.1 LDC Information'!C4 -> 0
C10: ='Z1.0 OEB Control Sheet'!#REF! -> 
B20: Control | C20: Rate Class | D20: Fixed Metric | E20: Vol Metric | G20: Service Charge % Revenue | H20: Distribution Volumetric Rate % Revenue kWh | I20: Distribution Volumetric Rate % Revenue kW | K20: Service Charge Revenue | L20: Distribution Volumetric Rate Revenue kWh | M20: Distribution Volumetric Rate Revenue kW | N20: Total Revenue by Rate Class | P20: Billed Customers or Connections | Q20: Billed kWh | R20: Billed kW | T20: Service Charge Rate Rider | U20: Distribution Volumetric Rate kWh Rate Rider | V20: Distribution Volumetric Rate kW Rate Rider
G21: A | H21: B | I21: C | K21: D = $N * A | L21: E = $N * B | M21: F = $N * C | N21: G = D + E + F | P21: H | Q21: I | R21: J | T21: K = D / H / 12 | U21: L = E / I | V21: M = F / J
B22: 1 | C22: ='B1.1 Re-Based Bill Det & Rates'!D22 -> Residential | D22: ='B1.1 Re-Based Bill Det & Rates'!E22 -> Customer | E22: ='B1.1 Re-Based Bill Det & Rates'!F22 -> kWh | G22: =IF(ISERROR(#REF!*(#REF!/#REF!)),0,#REF!*(#REF!/#REF!)) -> 0 | H22: =IF(ISERROR(#REF!*(#REF!/#REF!)),0,#REF!*(#REF!/#REF!)) -> 0 | I22: =IF(ISERROR(#REF!*(#REF!/#REF!)),0,#REF!*(#REF!/#REF!)) -> 0 | K22: =IF(ISERROR($N$47*G22),"",$N$47*G22) ->  | L22: =IF(ISERROR($N$47*H22),"",$N$47*H22) ->  | M22: =IF(ISERROR($N$47*I22),"",$N$47*I22) ->  | N22: =SUM(K22:M22) -> 0 | P22: ='B1.1 Re-Based Bill Det & Rates'!I22 -> 17115 | Q22: ='B1.1 Re-Based Bill Det & Rates'!J22 -> 141132375 | R22: ='B1.1 Re-Based Bill Det & Rates'!K22 -> 0 | T22: =IF(ISERROR(K22/P22/12),"",ROUND(K22/P22/12,6)) ->  | U22: =IF(ISERROR(L22/Q22),"",ROUND(L22/Q22,6)) ->  | V22: =IF(ISERROR(M22/R22),"",ROUND(M22/R22,6)) -> 
B23: 2 | C23: ='B1.1 Re-Based Bill Det & Rates'!D23 -> Residential - Hensall | D23: ='B1.1 Re-Based Bill Det & Rates'!E23 -> Customer | E23: ='B1.1 Re-Based Bill Det & Rates'!F23 -> kWh | G23: =IF(ISERROR(#REF!*(#REF!/#REF!)),0,#REF!*(#REF!/#REF!)) -> 0 | H23: =IF(ISERROR(#REF!*(#REF!/#REF!)),0,#REF!*(#REF!/#REF!)) -> 0 | I23: =IF(ISERROR(#REF!*(#REF!/#REF!)),0,#REF!*(#REF!/#REF!)) -> 0 | N23: 0 | P23: ='B1.1 Re-Based Bill Det & Rates'!I23 -> 413 | Q23: ='B1.1 Re-Based Bill Det & Rates'!J23 -> 4143109 | R23: ='B1.1 Re-Based Bill Det & Rates'!K23 -> 0 | T23: =IF(ISERROR(K23/P23/12),"",ROUND(K23/P23/12,6)) ->  | U23: =IF(ISERROR(L23/Q23),"",ROUND(L23/Q23,6)) ->  | V23: =IF(ISERROR(M23/R23),"",ROUND(M23/R23,6)) -> 
B24: 3 | C24: ='B1.1 Re-Based Bill Det & Rates'!D24 -> General Service Less Than 50 kW | D24: ='B1.1 Re-Based Bill Det & Rates'!E24 -> Customer | E24: ='B1.1 Re-Based Bill Det & Rates'!F24 -> kWh | G24: =IF(ISERROR(#REF!*(#REF!/#REF!)),0,#REF!*(#REF!/#REF!)) -> 0 | H24: =IF(ISERROR(#REF!*(#REF!/#REF!)),0,#REF!*(#REF!/#REF!)) -> 0 | I24: =IF(ISERROR(#REF!*(#REF!/#REF!)),0,#REF!*(#REF!/#REF!)) -> 0 | N24: 0 | P24: ='B1.1 Re-Based Bill Det & Rates'!I24 -> 1968 | Q24: ='B1.1 Re-Based Bill Det & Rates'!J24 -> 67469308 | R24: ='B1.1 Re-Based Bill Det & Rates'!K24 -> 0
B25: 4 | C25: ='B1.1 Re-Based Bill Det & Rates'!D25 -> General Service 50 to 4,999 kW | D25: ='B1.1 Re-Based Bill Det & Rates'!E25 -> Customer | E25: ='B1.1 Re-Based Bill Det & Rates'!F25 -> kW | G25: =IF(ISERROR(#REF!*(#REF!/#REF!)),0,#REF!*(#REF!/#REF!)) -> 0 | H25: =IF(ISERROR(#REF!*(#REF!/#REF!)),0,#REF!*(#REF!/#REF!)) -> 0 | I25: =IF(ISERROR(#REF!*(#REF!/#REF!)),0,#REF!*(#REF!/#REF!)) -> 0 | N25: 0 | P25: ='B1.1 Re-Based Bill Det & Rates'!I25 -> 221 | Q25: ='B1.1 Re-Based Bill Det & Rates'!J25 -> 316941804 | R25: ='B1.1 Re-Based Bill Det & Rates'!K25 -> 797792
B26: 5 | C26: ='B1.1 Re-Based Bill Det & Rates'!D26 -> Large Use | D26: ='B1.1 Re-Based Bill Det & Rates'!E26 -> Customer | E26: ='B1.1 Re-Based Bill Det & Rates'!F26 -> kW | G26: =IF(ISERROR(#REF!*(#REF!/#REF!)),0,#REF!*(#REF!/#REF!)) -> 0 | H26: =IF(ISERROR(#REF!*(#REF!/#REF!)),0,#REF!*(#REF!/#REF!)) -> 0 | I26: =IF(ISERROR(#REF!*(#REF!/#REF!)),0,#REF!*(#REF!/#REF!)) -> 0 | N26: 0 | P26: ='B1.1 Re-Based Bill Det & Rates'!I26 -> 2 | Q26: ='B1.1 Re-Based Bill Det & Rates'!J26 -> 65544852 | R26: ='B1.1 Re-Based Bill Det & Rates'!K26 -> 128687
B27: 6 | C27: ='B1.1 Re-Based Bill Det & Rates'!D27 -> Unmetered Scattered Load | D27: ='B1.1 Re-Based Bill Det & Rates'!E27 -> Connection | E27: ='B1.1 Re-Based Bill Det & Rates'!F27 -> kWh | G27: =IF(ISERROR(#REF!*(#REF!/#REF!)),0,#REF!*(#REF!/#REF!)) -> 0 | H27: =IF(ISERROR(#REF!*(#REF!/#REF!)),0,#REF!*(#REF!/#REF!)) -> 0 | I27: =IF(ISERROR(#REF!*(#REF!/#REF!)),0,#REF!*(#REF!/#REF!)) -> 0 | N27: 0 | P27: ='B1.1 Re-Based Bill Det & Rates'!I27 -> 156 | Q27: ='B1.1 Re-Based Bill Det & Rates'!J27 -> 629732 | R27: ='B1.1 Re-Based Bill Det & Rates'!K27 -> 0
B28: 7 | C28: ='B1.1 Re-Based Bill Det & Rates'!D28 -> Sentinel Lighting | D28: ='B1.1 Re-Based Bill Det & Rates'!E28 -> Connection | E28: ='B1.1 Re-Based Bill Det & Rates'!F28 -> kW | G28: =IF(ISERROR(#REF!*(#REF!/#REF!)),0,#REF!*(#REF!/#REF!)) -> 0 | H28: =IF(ISERROR(#REF!*(#REF!/#REF!)),0,#REF!*(#REF!/#REF!)) -> 0 | I28: =IF(ISERROR(#REF!*(#REF!/#REF!)),0,#REF!*(#REF!/#REF!)) -> 0 | N28: 0 | P28: ='B1.1 Re-Based Bill Det & Rates'!I28 -> 83 | Q28: ='B1.1 Re-Based Bill Det & Rates'!J28 -> 234690 | R28: ='B1.1 Re-Based Bill Det & Rates'!K28 -> 679
B29: 8 | C29: ='B1.1 Re-Based Bill Det & Rates'!D29 -> Street Lighting | D29: ='B1.1 Re-Based Bill Det & Rates'!E29 -> Connection | E29: ='B1.1 Re-Based Bill Det & Rates'!F29 -> kW | G29: =IF(ISERROR(#REF!*(#REF!/#REF!)),0,#REF!*(#REF!/#REF!)) -> 0 | H29: =IF(ISERROR(#REF!*(#REF!/#REF!)),0,#REF!*(#REF!/#REF!)) -> 0 | I29: =IF(ISERROR(#REF!*(#REF!/#REF!)),0,#REF!*(#REF!/#REF!)) -> 0 | N29: 0 | P29: ='B1.1 Re-Based Bill Det & Rates'!I29 -> 5915 | Q29: ='B1.1 Re-Based Bill Det & Rates'!J29 -> 3904130 | R29: ='B1.1 Re-Based Bill Det & Rates'!K29 -> 11255
B30: 9 | C30: ='B1.1 Re-Based Bill Det & Rates'!D30 -> Rate Class 9 | D30: ='B1.1 Re-Based Bill Det & Rates'!E30 -> NA | E30: ='B1.1 Re-Based Bill Det & Rates'!F30 -> NA | G30: =IF(ISERROR(#REF!*(#REF!/#REF!)),0,#REF!*(#REF!/#REF!)) -> 0 | H30: =IF(ISERROR(#REF!*(#REF!/#REF!)),0,#REF!*(#REF!/#REF!)) -> 0 | I30: =IF(ISERROR(#REF!*(#REF!/#REF!)),0,#REF!*(#REF!/#REF!)) -> 0 | N30: 0 | P30: ='B1.1 Re-Based Bill Det & Rates'!I30 -> 0 | Q30: ='B1.1 Re-Based Bill Det & Rates'!J30 -> 0 | R30: ='B1.1 Re-Based Bill Det & Rates'!K30 -> 0
B31: 10 | C31: ='B1.1 Re-Based Bill Det & Rates'!D31 -> Rate Class 10 | D31: ='B1.1 Re-Based Bill Det & Rates'!E31 -> NA | E31: ='B1.1 Re-Based Bill Det & Rates'!F31 -> NA | G31: =IF(ISERROR(#REF!*(#REF!/#REF!)),0,#REF!*(#REF!/#REF!)) -> 0 | H31: =IF(ISERROR(#REF!*(#REF!/#REF!)),0,#REF!*(#REF!/#REF!)) -> 0 | I31: =IF(ISERROR(#REF!*(#REF!/#REF!)),0,#REF!*(#REF!/#REF!)) -> 0 | N31: 0 | P31: ='B1.1 Re-Based Bill Det & Rates'!I31 -> 0 | Q31: ='B1.1 Re-Based Bill Det & Rates'!J31 -> 0 | R31: ='B1.1 Re-Based Bill Det & Rates'!K31 -> 0
B32: 11 | C32: ='B1.1 Re-Based Bill Det & Rates'!D32 -> Rate Class 11 | D32: ='B1.1 Re-Based Bill Det & Rates'!E32 -> NA | E32: ='B1.1 Re-Based Bill Det & Rates'!F32 -> NA | G32: =IF(ISERROR(#REF!*(#REF!/#REF!)),0,#REF!*(#REF!/#REF!)) -> 0 | H32: =IF(ISERROR(#REF!*(#REF!/#REF!)),0,#REF!*(#REF!/#REF!)) -> 0 | I32: =IF(ISERROR(#REF!*(#REF!/#REF!)),0,#REF!*(#REF!/#REF!)) -> 0 | N32: 0 | P32: ='B1.1 Re-Based Bill Det & Rates'!I32 -> 0 | Q32: ='B1.1 Re-Based Bill Det & Rates'!J32 -> 0 | R32: ='B1.1 Re-Based Bill Det & Rates'!K32 -> 0
B33: 12 | C33: ='B1.1 Re-Based Bill Det & Rates'!D33 -> Rate Class 12 | D33: ='B1.1 Re-Based Bill Det & Rates'!E33 -> NA | E33: ='B1.1 Re-Based Bill Det & Rates'!F33 -> NA | G33: =IF(ISERROR(#REF!*(#REF!/#REF!)),0,#REF!*(#REF!/#REF!)) -> 0 | H33: =IF(ISERROR(#REF!*(#REF!/#REF!)),0,#REF!*(#REF!/#REF!)) -> 0 | I33: =IF(ISERROR(#REF!*(#REF!/#REF!)),0,#REF!*(#REF!/#REF!)) -> 0 | N33: 0 | P33: ='B1.1 Re-Based Bill Det & Rates'!I33 -> 0 | Q33: ='B1.1 Re-Based Bill Det & Rates'!J33 -> 0 | R33: ='B1.1 Re-Based Bill Det & Rates'!K33 -> 0
B34: 13 | C34: ='B1.1 Re-Based Bill Det & Rates'!D34 -> Rate Class 13 | D34: ='B1.1 Re-Based Bill Det & Rates'!E34 -> NA | E34: ='B1.1 Re-Based Bill Det & Rates'!F34 -> NA | G34: =IF(ISERROR(#REF!*(#REF!/#REF!)),0,#REF!*(#REF!/#REF!)) -> 0 | H34: =IF(ISERROR(#REF!*(#REF!/#REF!)),0,#REF!*(#REF!/#REF!)) -> 0 | I34: =IF(ISERROR(#REF!*(#REF!/#REF!)),0,#REF!*(#REF!/#REF!)) -> 0 | N34: 0 | P34: ='B1.1 Re-Based Bill Det & Rates'!I34 -> 0 | Q34: ='B1.1 Re-Based Bill Det & Rates'!J34 -> 0 | R34: ='B1.1 Re-Based Bill Det & Rates'!K34 -> 0
B35: 14 | C35: ='B1.1 Re-Based Bill Det & Rates'!D35 -> Rate Class 14 | D35: ='B1.1 Re-Based Bill Det & Rates'!E35 -> NA | E35: ='B1.1 Re-Based Bill Det & Rates'!F35 -> NA | G35: =IF(ISERROR(#REF!*(#REF!/#REF!)),0,#REF!*(#REF!/#REF!)) -> 0 | H35: =IF(ISERROR(#REF!*(#REF!/#REF!)),0,#REF!*(#REF!/#REF!)) -> 0 | I35: =IF(ISERROR(#REF!*(#REF!/#REF!)),0,#REF!*(#REF!/#REF!)) -> 0 | N35: 0 | P35: ='B1.1 Re-Based Bill Det & Rates'!I35 -> 0 | Q35: ='B1.1 Re-Based Bill Det & Rates'!J35 -> 0 | R35: ='B1.1 Re-Based Bill Det & Rates'!K35 -> 0
B36: 15 | C36: ='B1.1 Re-Based Bill Det & Rates'!D36 -> Rate Class 15 | D36: ='B1.1 Re-Based Bill Det & Rates'!E36 -> NA | E36: ='B1.1 Re-Based Bill Det & Rates'!F36 -> NA | G36: =IF(ISERROR(#REF!*(#REF!/#REF!)),0,#REF!*(#REF!/#REF!)) -> 0 | H36: =IF(ISERROR(#REF!*(#REF!/#REF!)),0,#REF!*(#REF!/#REF!)) -> 0 | I36: =IF(ISERROR(#REF!*(#REF!/#REF!)),0,#REF!*(#REF!/#REF!)) -> 0 | N36: 0 | P36: ='B1.1 Re-Based Bill Det & Rates'!I36 -> 0 | Q36: ='B1.1 Re-Based Bill Det & Rates'!J36 -> 0 | R36: ='B1.1 Re-Based Bill Det & Rates'!K36 -> 0
B37: 16 | C37: ='B1.1 Re-Based Bill Det & Rates'!D37 -> Rate Class 16 | D37: ='B1.1 Re-Based Bill Det & Rates'!E37 -> NA | E37: ='B1.1 Re-Based Bill Det & Rates'!F37 -> NA | G37: =IF(ISERROR(#REF!*(#REF!/#REF!)),0,#REF!*(#REF!/#REF!)) -> 0 | H37: =IF(ISERROR(#REF!*(#REF!/#REF!)),0,#REF!*(#REF!/#REF!)) -> 0 | I37: =IF(ISERROR(#REF!*(#REF!/#REF!)),0,#REF!*(#REF!/#REF!)) -> 0 | N37: 0 | P37: ='B1.1 Re-Based Bill Det & Rates'!I37 -> 0 | Q37: ='B1.1 Re-Based Bill Det & Rates'!J37 -> 0 | R37: ='B1.1 Re-Based Bill Det & Rates'!K37 -> 0
B38: 17 | C38: ='B1.1 Re-Based Bill Det & Rates'!D38 -> Rate Class 17 | D38: ='B1.1 Re-Based Bill Det & Rates'!E38 -> NA | E38: ='B1.1 Re-Based Bill Det & Rates'!F38 -> NA | G38: =IF(ISERROR(#REF!*(#REF!/#REF!)),0,#REF!*(#REF!/#REF!)) -> 0 | H38: =IF(ISERROR(#REF!*(#REF!/#REF!)),0,#REF!*(#REF!/#REF!)) -> 0 | I38: =IF(ISERROR(#REF!*(#REF!/#REF!)),0,#REF!*(#REF!/#REF!)) -> 0 | N38: 0 | P38: ='B1.1 Re-Based Bill Det & Rates'!I38 -> 0 | Q38: ='B1.1 Re-Based Bill Det & Rates'!J38 -> 0 | R38: ='B1.1 Re-Based Bill Det & Rates'!K38 -> 0
B39: 18 | C39: ='B1.1 Re-Based Bill Det & Rates'!D39 -> Rate Class 18 | D39: ='B1.1 Re-Based Bill Det & Rates'!E39 -> NA | E39: ='B1.1 Re-Based Bill Det & Rates'!F39 -> NA | G39: =IF(ISERROR(#REF!*(#REF!/#REF!)),0,#REF!*(#REF!/#REF!)) -> 0 | H39: =IF(ISERROR(#REF!*(#REF!/#REF!)),0,#REF!*(#REF!/#REF!)) -> 0 | I39: =IF(ISERROR(#REF!*(#REF!/#REF!)),0,#REF!*(#REF!/#REF!)) -> 0 | N39: 0 | P39: ='B1.1 Re-Based Bill Det & Rates'!I39 -> 0 | Q39: ='B1.1 Re-Based Bill Det & Rates'!J39 -> 0 | R39: ='B1.1 Re-Based Bill Det & Rates'!K39 -> 0
B40: 19 | C40: ='B1.1 Re-Based Bill Det & Rates'!D40 -> Rate Class 19 | D40: ='B1.1 Re-Based Bill Det & Rates'!E40 -> NA | E40: ='B1.1 Re-Based Bill Det & Rates'!F40 -> NA | G40: =IF(ISERROR(#REF!*(#REF!/#REF!)),0,#REF!*(#REF!/#REF!)) -> 0 | H40: =IF(ISERROR(#REF!*(#REF!/#REF!)),0,#REF!*(#REF!/#REF!)) -> 0 | I40: =IF(ISERROR(#REF!*(#REF!/#REF!)),0,#REF!*(#REF!/#REF!)) -> 0 | N40: 0 | P40: ='B1.1 Re-Based Bill Det & Rates'!I40 -> 0 | Q40: ='B1.1 Re-Based Bill Det & Rates'!J40 -> 0 | R40: ='B1.1 Re-Based Bill Det & Rates'!K40 -> 0
B41: 20 | C41: ='B1.1 Re-Based Bill Det & Rates'!D41 -> Rate Class 20 | D41: ='B1.1 Re-Based Bill Det & Rates'!E41 -> NA | E41: ='B1.1 Re-Based Bill Det & Rates'!F41 -> NA | G41: =IF(ISERROR(#REF!*(#REF!/#REF!)),0,#REF!*(#REF!/#REF!)) -> 0 | H41: =IF(ISERROR(#REF!*(#REF!/#REF!)),0,#REF!*(#REF!/#REF!)) -> 0 | I41: =IF(ISERROR(#REF!*(#REF!/#REF!)),0,#REF!*(#REF!/#REF!)) -> 0 | N41: 0 | P41: ='B1.1 Re-Based Bill Det & Rates'!I41 -> 0 | Q41: ='B1.1 Re-Based Bill Det & Rates'!J41 -> 0 | R41: ='B1.1 Re-Based Bill Det & Rates'!K41 -> 0
B42: 21 | C42: ='B1.1 Re-Based Bill Det & Rates'!D42 -> Rate Class 21 | D42: ='B1.1 Re-Based Bill Det & Rates'!E42 -> NA | E42: ='B1.1 Re-Based Bill Det & Rates'!F42 -> NA | G42: =IF(ISERROR(#REF!*(#REF!/#REF!)),0,#REF!*(#REF!/#REF!)) -> 0 | H42: =IF(ISERROR(#REF!*(#REF!/#REF!)),0,#REF!*(#REF!/#REF!)) -> 0 | I42: =IF(ISERROR(#REF!*(#REF!/#REF!)),0,#REF!*(#REF!/#REF!)) -> 0 | N42: 0 | P42: ='B1.1 Re-Based Bill Det & Rates'!I42 -> 0 | Q42: ='B1.1 Re-Based Bill Det & Rates'!J42 -> 0 | R42: ='B1.1 Re-Based Bill Det & Rates'!K42 -> 0
B43: 22 | C43: ='B1.1 Re-Based Bill Det & Rates'!D43 -> Rate Class 22 | D43: ='B1.1 Re-Based Bill Det & Rates'!E43 -> NA | E43: ='B1.1 Re-Based Bill Det & Rates'!F43 -> NA | G43: =IF(ISERROR(#REF!*(#REF!/#REF!)),0,#REF!*(#REF!/#REF!)) -> 0 | H43: =IF(ISERROR(#REF!*(#REF!/#REF!)),0,#REF!*(#REF!/#REF!)) -> 0 | I43: =IF(ISERROR(#REF!*(#REF!/#REF!)),0,#REF!*(#REF!/#REF!)) -> 0 | N43: 0 | P43: ='B1.1 Re-Based Bill Det & Rates'!I43 -> 0 | Q43: ='B1.1 Re-Based Bill Det & Rates'!J43 -> 0 | R43: ='B1.1 Re-Based Bill Det & Rates'!K43 -> 0
B44: 23 | C44: ='B1.1 Re-Based Bill Det & Rates'!D44 -> Rate Class 23 | D44: ='B1.1 Re-Based Bill Det & Rates'!E44 -> NA | E44: ='B1.1 Re-Based Bill Det & Rates'!F44 -> NA | G44: =IF(ISERROR(#REF!*(#REF!/#REF!)),0,#REF!*(#REF!/#REF!)) -> 0 | H44: =IF(ISERROR(#REF!*(#REF!/#REF!)),0,#REF!*(#REF!/#REF!)) -> 0 | I44: =IF(ISERROR(#REF!*(#REF!/#REF!)),0,#REF!*(#REF!/#REF!)) -> 0 | N44: 0 | P44: ='B1.1 Re-Based Bill Det & Rates'!I44 -> 0 | Q44: ='B1.1 Re-Based Bill Det & Rates'!J44 -> 0 | R44: ='B1.1 Re-Based Bill Det & Rates'!K44 -> 0
B45: 24 | C45: ='B1.1 Re-Based Bill Det & Rates'!D45 -> Rate Class 24 | D45: ='B1.1 Re-Based Bill Det & Rates'!E45 -> NA | E45: ='B1.1 Re-Based Bill Det & Rates'!F45 -> NA | G45: =IF(ISERROR(#REF!*(#REF!/#REF!)),0,#REF!*(#REF!/#REF!)) -> 0 | H45: =IF(ISERROR(#REF!*(#REF!/#REF!)),0,#REF!*(#REF!/#REF!)) -> 0 | I45: =IF(ISERROR(#REF!*(#REF!/#REF!)),0,#REF!*(#REF!/#REF!)) -> 0 | N45: 0 | P45: ='B1.1 Re-Based Bill Det & Rates'!I45 -> 0 | Q45: ='B1.1 Re-Based Bill Det & Rates'!J45 -> 0 | R45: ='B1.1 Re-Based Bill Det & Rates'!K45 -> 0
B46: 25 | C46: ='B1.1 Re-Based Bill Det & Rates'!D46 -> Rate Class 25 | D46: ='B1.1 Re-Based Bill Det & Rates'!E46 -> NA | E46: ='B1.1 Re-Based Bill Det & Rates'!F46 -> NA | G46: =IF(ISERROR(#REF!*(#REF!/#REF!)),0,#REF!*(#REF!/#REF!)) -> 0 | H46: =IF(ISERROR(#REF!*(#REF!/#REF!)),0,#REF!*(#REF!/#REF!)) -> 0 | I46: =IF(ISERROR(#REF!*(#REF!/#REF!)),0,#REF!*(#REF!/#REF!)) -> 0 | N46: 0 | P46: ='B1.1 Re-Based Bill Det & Rates'!I46 -> 0 | Q46: ='B1.1 Re-Based Bill Det & Rates'!J46 -> 0 | R46: ='B1.1 Re-Based Bill Det & Rates'!K46 -> 0
K47: =SUM(K22:K46) -> 0 | L47: =SUM(L22:L46) -> 0 | M47: =SUM(M22:M46) -> 0 | N47: =#REF! -> 
N48: =SUM(N22:N46)-N47 -> 
N49: N
T50: Enter the above value onto Sheet "J2.1 Tax Change Rate Rider" of the 2010 OEB IRM3 Rate Generator.

Sheet D1.1 Current Revenue from Rates
C8: This sheet is used to determine the applicants most current allocation of revenues (after the most recent revenue to cost ratio adjustment, if applicable) to be used to calculate the incremental capital rate riders.
C18: ='Z1.0 OEB Control Sheet'!C10 -> Current Revenue from Rates
C20: Rate Class | D20: ='B1.1 Re-Based Bill Det & Rates'!E20 -> Fixed Metric | E20: ='B1.1 Re-Based Bill Det & Rates'!F20 -> Vol Metric | G20: Current Base Service Charge | H20: Current Base Distribution Volumetric Rate kWh | I20: Current Base Distribution Volumetric Rate kW | K20: ='B1.1 Re-Based Bill Det & Rates'!I20 -> Re-based Billed Customers or Connections | L20: ='B1.1 Re-Based Bill Det & Rates'!J20 -> Re-based Billed kWh | M20: ='B1.1 Re-Based Bill Det & Rates'!K20 -> Re-based Billed kW | O20: Current Base Service Charge Revenue | P20: Current Base Distribution Volumetric Rate kWh Revenue | Q20: Current Base Distribution Volumetric Rate kW Revenue | R20: Total Current Base Revenue | T20: Service Charge % Total Revenue | U20: Distribution Volumetric Rate % Total Revenue | V20: Distribution Volumetric Rate % Total Revenue | W20: Total % Revenue
G21: A | H21: B | I21: C | K21: D | L21: E | M21: F | O21: G = A * D *12 | P21: H = B * E | Q21: I = C * F | R21: J = G + H + I | T21: L = G / $K | U21: M = H / $K | V21: N = I / $K | W21: O = J / $K
C22: ='B1.1 Re-Based Bill Det & Rates'!D22 -> Residential | D22: ='B1.1 Re-Based Bill Det & Rates'!E22 -> Customer | E22: ='B1.1 Re-Based Bill Det & Rates'!F22 -> kWh | G22: 14.92 | H22: 0.0166 | K22: ='B1.1 Re-Based Bill Det & Rates'!I22 -> 17115 | L22: ='B1.1 Re-Based Bill Det & Rates'!J22 -> 141132375 | M22: ='B1.1 Re-Based Bill Det & Rates'!K22 -> 0 | O22: =G22*K22*12 -> 3064269.6 | P22: =H22*L22 -> 2342797.425 | Q22: =I22*M22 -> 0 | R22: =SUM(O22:Q22) -> 5407067.025 | T22: =IF(ISERROR(O22/$R$48),0,O22/$R$48) -> 0.3010281127 | U22: =IF(ISERROR(P22/$R$48),0,P22/$R$48) -> 0.230152036 | V22: =IF(ISERROR(Q22/$R$48),0,Q22/$R$48) -> 0 | W22: =SUM(T22:V22) -> 0.5311801487
C23: ='B1.1 Re-Based Bill Det & Rates'!D23 -> Residential - Hensall | D23: ='B1.1 Re-Based Bill Det & Rates'!E23 -> Customer | E23: ='B1.1 Re-Based Bill Det & Rates'!F23 -> kWh | G23: 13.82 | H23: 0.0149 | K23: ='B1.1 Re-Based Bill Det & Rates'!I23 -> 413 | L23: ='B1.1 Re-Based Bill Det & Rates'!J23 -> 4143109 | M23: ='B1.1 Re-Based Bill Det & Rates'!K23 -> 0 | O23: =G23*K23*12 -> 68491.92 | P23: =H23*L23 -> 61732.3241 | Q23: 0 | R23: =SUM(O23:Q23) -> 130224.2441 | T23: =IF(ISERROR(O23/$R$48),0,O23/$R$48) -> 0.006728518082 | U23: =IF(ISERROR(P23/$R$48),0,P23/$R$48) -> 0.006064468027 | V23: =IF(ISERROR(Q23/$R$48),0,Q23/$R$48) -> 0 | W23: =SUM(T23:V23) -> 0.01279298611
C24: ='B1.1 Re-Based Bill Det & Rates'!D24 -> General Service Less Than 50 kW | D24: ='B1.1 Re-Based Bill Det & Rates'!E24 -> Customer | E24: ='B1.1 Re-Based Bill Det & Rates'!F24 -> kWh | G24: 28.88 | H24: 0.0146 | K24: ='B1.1 Re-Based Bill Det & Rates'!I24 -> 1968 | L24: ='B1.1 Re-Based Bill Det & Rates'!J24 -> 67469308 | M24: ='B1.1 Re-Based Bill Det & Rates'!K24 -> 0 | O24: 682030.08 | P24: 985051.8968 | Q24: 0 | R24: 1667081.977 | T24: 0.06700135908 | U24: 0.09676965545 | V24: 0 | W24: 0.1637710145
C25: ='B1.1 Re-Based Bill Det & Rates'!D25 -> General Service 50 to 4,999 kW | D25: ='B1.1 Re-Based Bill Det & Rates'!E25 -> Customer | E25: ='B1.1 Re-Based Bill Det & Rates'!F25 -> kW | G25: 223.24 | I25: 2.2889 | K25: ='B1.1 Re-Based Bill Det & Rates'!I25 -> 221 | L25: ='B1.1 Re-Based Bill Det & Rates'!J25 -> 316941804 | M25: ='B1.1 Re-Based Bill Det & Rates'!K25 -> 797792 | O25: 592032.48 | P25: 0 | Q25: 1826066.109 | R25: 2418098.589 | T25: 0.05816016323 | U25: 0 | V25: 0.1793893182 | W25: 0.2375494815
C26: ='B1.1 Re-Based Bill Det & Rates'!D26 -> Large Use | D26: ='B1.1 Re-Based Bill Det & Rates'!E26 -> Customer | E26: ='B1.1 Re-Based Bill Det & Rates'!F26 -> kW | G26: 10676.92 | I26: 0.9908 | K26: ='B1.1 Re-Based Bill Det & Rates'!I26 -> 2 | L26: ='B1.1 Re-Based Bill Det & Rates'!J26 -> 65544852 | M26: ='B1.1 Re-Based Bill Det & Rates'!K26 -> 128687 | O26: 256246.08 | P26: 0 | Q26: 127503.0796 | R26: 383749.1596 | T26: 0.0251731355 | U26: 0 | V26: 0.012525664 | W26: 0.0376987995
C27: ='B1.1 Re-Based Bill Det & Rates'!D27 -> Unmetered Scattered Load | D27: ='B1.1 Re-Based Bill Det & Rates'!E27 -> Connection | E27: ='B1.1 Re-Based Bill Det & Rates'!F27 -> kWh | G27: 12.79 | H27: 0.0126 | K27: ='B1.1 Re-Based Bill Det & Rates'!I27 -> 156 | L27: ='B1.1 Re-Based Bill Det & Rates'!J27 -> 629732 | M27: ='B1.1 Re-Based Bill Det & Rates'!K27 -> 0 | O27: 23942.88 | P27: 7934.6232 | Q27: 0 | R27: 31877.5032 | T27: 0.002352103738 | U27: 0.0007794825386 | V27: 0 | W27: 0.003131586276
C28: ='B1.1 Re-Based Bill Det & Rates'!D28 -> Sentinel Lighting | D28: ='B1.1 Re-Based Bill Det & Rates'!E28 -> Connection | E28: ='B1.1 Re-Based Bill Det & Rates'!F28 -> kW | G28: 2.02 | I28: 10.614 | K28: ='B1.1 Re-Based Bill Det & Rates'!I28 -> 83 | L28: ='B1.1 Re-Based Bill Det & Rates'!J28 -> 234690 | M28: ='B1.1 Re-Based Bill Det & Rates'!K28 -> 679 | O28: 2011.92 | P28: 0 | Q28: 7206.906 | R28: 9218.826 | T28: 0.0001976472568 | U28: 0 | V28: 0.0007079929624 | W28: 0.0009056402192
C29: ='B1.1 Re-Based Bill Det & Rates'!D29 -> Street Lighting | D29: ='B1.1 Re-Based Bill Det & Rates'!E29 -> Connection | E29: ='B1.1 Re-Based Bill Det & Rates'!F29 -> kW | G29: 1.08 | I29: 4.9197 | K29: ='B1.1 Re-Based Bill Det & Rates'!I29 -> 5915 | L29: ='B1.1 Re-Based Bill Det & Rates'!J29 -> 3904130 | M29: ='B1.1 Re-Based Bill Det & Rates'!K29 -> 11255 | O29: 76658.4 | P29: 0 | Q29: 55371.2235 | R29: 132029.6235 | T29: =IF(ISERROR(O29/$R$48),0,O29/$R$48) -> 0.007530777799 | U29: =IF(ISERROR(P29/$R$48),0,P29/$R$48) -> 0 | V29: =IF(ISERROR(Q29/$R$48),0,Q29/$R$48) -> 0.005439565405 | W29: =SUM(T29:V29) -> 0.0129703432
C30: ='B1.1 Re-Based Bill Det & Rates'!D30 -> Rate Class 9 | D30: ='B1.1 Re-Based Bill Det & Rates'!E30 -> NA | E30: ='B1.1 Re-Based Bill Det & Rates'!F30 -> NA | K30: ='B1.1 Re-Based Bill Det & Rates'!I30 -> 0 | L30: ='B1.1 Re-Based Bill Det & Rates'!J30 -> 0 | M30: ='B1.1 Re-Based Bill Det & Rates'!K30 -> 0 | O30: 0 | P30: 0 | Q30: 0 | R30: 0 | T30: 0 | U30: 0 | V30: 0 | W30: 0
C31: ='B1.1 Re-Based Bill Det & Rates'!D31 -> Rate Class 10 | D31: ='B1.1 Re-Based Bill Det & Rates'!E31 -> NA | E31: ='B1.1 Re-Based Bill Det & Rates'!F31 -> NA | K31: ='B1.1 Re-Based Bill Det & Rates'!I31 -> 0 | L31: ='B1.1 Re-Based Bill Det & Rates'!J31 -> 0 | M31: ='B1.1 Re-Based Bill Det & Rates'!K31 -> 0 | O31: 0 | P31: 0 | Q31: 0 | R31: 0 | T31: 0 | U31: 0 | V31: 0 | W31: 0
C32: ='B1.1 Re-Based Bill Det & Rates'!D32 -> Rate Class 11 | D32: ='B1.1 Re-Based Bill Det & Rates'!E32 -> NA | E32: ='B1.1 Re-Based Bill Det & Rates'!F32 -> NA | K32: ='B1.1 Re-Based Bill Det & Rates'!I32 -> 0 | L32: ='B1.1 Re-Based Bill Det & Rates'!J32 -> 0 | M32: ='B1.1 Re-Based Bill Det & Rates'!K32 -> 0 | O32: 0 | P32: 0 | Q32: 0 | R32: 0 | T32: 0 | U32: 0 | V32: 0 | W32: 0
C33: ='B1.1 Re-Based Bill Det & Rates'!D33 -> Rate Class 12 | D33: ='B1.1 Re-Based Bill Det & Rates'!E33 -> NA | E33: ='B1.1 Re-Based Bill Det & Rates'!F33 -> NA | K33: ='B1.1 Re-Based Bill Det & Rates'!I33 -> 0 | L33: ='B1.1 Re-Based Bill Det & Rates'!J33 -> 0 | M33: ='B1.1 Re-Based Bill Det & Rates'!K33 -> 0 | O33: 0 | P33: 0 | Q33: 0 | R33: 0 | T33: 0 | U33: 0 | V33: 0 | W33: 0
C34: ='B1.1 Re-Based Bill Det & Rates'!D34 -> Rate Class 13 | D34: ='B1.1 Re-Based Bill Det & Rates'!E34 -> NA | E34: ='B1.1 Re-Based Bill Det & Rates'!F34 -> NA | K34: ='B1.1 Re-Based Bill Det & Rates'!I34 -> 0 | L34: ='B1.1 Re-Based Bill Det & Rates'!J34 -> 0 | M34: ='B1.1 Re-Based Bill Det & Rates'!K34 -> 0 | O34: 0 | P34: 0 | Q34: 0 | R34: 0 | T34: 0 | U34: 0 | V34: 0 | W34: 0
C35: ='B1.1 Re-Based Bill Det & Rates'!D35 -> Rate Class 14 | D35: ='B1.1 Re-Based Bill Det & Rates'!E35 -> NA | E35: ='B1.1 Re-Based Bill Det & Rates'!F35 -> NA | K35: ='B1.1 Re-Based Bill Det & Rates'!I35 -> 0 | L35: ='B1.1 Re-Based Bill Det & Rates'!J35 -> 0 | M35: ='B1.1 Re-Based Bill Det & Rates'!K35 -> 0 | O35: 0 | P35: 0 | Q35: 0 | R35: 0 | T35: 0 | U35: 0 | V35: 0 | W35: 0
C36: ='B1.1 Re-Based Bill Det & Rates'!D36 -> Rate Class 15 | D36: ='B1.1 Re-Based Bill Det & Rates'!E36 -> NA | E36: ='B1.1 Re-Based Bill Det & Rates'!F36 -> NA | K36: ='B1.1 Re-Based Bill Det & Rates'!I36 -> 0 | L36: ='B1.1 Re-Based Bill Det & Rates'!J36 -> 0 | M36: ='B1.1 Re-Based Bill Det & Rates'!K36 -> 0 | O36: 0 | P36: 0 | Q36: 0 | R36: 0 | T36: 0 | U36: 0 | V36: 0 | W36: 0
C37: ='B1.1 Re-Based Bill Det & Rates'!D37 -> Rate Class 16 | D37: ='B1.1 Re-Based Bill Det & Rates'!E37 -> NA | E37: ='B1.1 Re-Based Bill Det & Rates'!F37 -> NA | K37: ='B1.1 Re-Based Bill Det & Rates'!I37 -> 0 | L37: ='B1.1 Re-Based Bill Det & Rates'!J37 -> 0 | M37: ='B1.1 Re-Based Bill Det & Rates'!K37 -> 0 | O37: 0 | P37: 0 | Q37: 0 | R37: 0 | T37: 0 | U37: 0 | V37: 0 | W37: 0
C38: ='B1.1 Re-Based Bill Det & Rates'!D38 -> Rate Class 17 | D38: ='B1.1 Re-Based Bill Det & Rates'!E38 -> NA | E38: ='B1.1 Re-Based Bill Det & Rates'!F38 -> NA | K38: ='B1.1 Re-Based Bill Det & Rates'!I38 -> 0 | L38: ='B1.1 Re-Based Bill Det & Rates'!J38 -> 0 | M38: ='B1.1 Re-Based Bill Det & Rates'!K38 -> 0 | O38: 0 | P38: 0 | Q38: 0 | R38: 0 | T38: 0 | U38: 0 | V38: 0 | W38: 0
C39: ='B1.1 Re-Based Bill Det & Rates'!D39 -> Rate Class 18 | D39: ='B1.1 Re-Based Bill Det & Rates'!E39 -> NA | E39: ='B1.1 Re-Based Bill Det & Rates'!F39 -> NA | K39: ='B1.1 Re-Based Bill Det & Rates'!I39 -> 0 | L39: ='B1.1 Re-Based Bill Det & Rates'!J39 -> 0 | M39: ='B1.1 Re-Based Bill Det & Rates'!K39 -> 0 | O39: 0 | P39: 0 | Q39: 0 | R39: 0 | T39: 0 | U39: 0 | V39: 0 | W39: 0
C40: ='B1.1 Re-Based Bill Det & Rates'!D40 -> Rate Class 19 | D40: ='B1.1 Re-Based Bill Det & Rates'!E40 -> NA | E40: ='B1.1 Re-Based Bill Det & Rates'!F40 -> NA | K40: ='B1.1 Re-Based Bill Det & Rates'!I40 -> 0 | L40: ='B1.1 Re-Based Bill Det & Rates'!J40 -> 0 | M40: ='B1.1 Re-Based Bill Det & Rates'!K40 -> 0 | O40: 0 | P40: 0 | Q40: 0 | R40: 0 | T40: 0 | U40: 0 | V40: 0 | W40: 0
C41: ='B1.1 Re-Based Bill Det & Rates'!D41 -> Rate Class 20 | D41: ='B1.1 Re-Based Bill Det & Rates'!E41 -> NA | E41: ='B1.1 Re-Based Bill Det & Rates'!F41 -> NA | K41: ='B1.1 Re-Based Bill Det & Rates'!I41 -> 0 | L41: ='B1.1 Re-Based Bill Det & Rates'!J41 -> 0 | M41: ='B1.1 Re-Based Bill Det & Rates'!K41 -> 0 | O41: 0 | P41: 0 | Q41: 0 | R41: 0 | T41: 0 | U41: 0 | V41: 0 | W41: 0
C42: ='B1.1 Re-Based Bill Det & Rates'!D42 -> Rate Class 21 | D42: ='B1.1 Re-Based Bill Det & Rates'!E42 -> NA | E42: ='B1.1 Re-Based Bill Det & Rates'!F42 -> NA | K42: ='B1.1 Re-Based Bill Det & Rates'!I42 -> 0 | L42: ='B1.1 Re-Based Bill Det & Rates'!J42 -> 0 | M42: ='B1.1 Re-Based Bill Det & Rates'!K42 -> 0 | O42: 0 | P42: 0 | Q42: 0 | R42: 0 | T42: 0 | U42: 0 | V42: 0 | W42: 0
C43: ='B1.1 Re-Based Bill Det & Rates'!D43 -> Rate Class 22 | D43: ='B1.1 Re-Based Bill Det & Rates'!E43 -> NA | E43: ='B1.1 Re-Based Bill Det & Rates'!F43 -> NA | K43: ='B1.1 Re-Based Bill Det & Rates'!I43 -> 0 | L43: ='B1.1 Re-Based Bill Det & Rates'!J43 -> 0 | M43: ='B1.1 Re-Based Bill Det & Rates'!K43 -> 0 | O43: 0 | P43: 0 | Q43: 0 | R43: 0 | T43: 0 | U43: 0 | V43: 0 | W43: 0
C44: ='B1.1 Re-Based Bill Det & Rates'!D44 -> Rate Class 23 | D44: ='B1.1 Re-Based Bill Det & Rates'!E44 -> NA | E44: ='B1.1 Re-Based Bill Det & Rates'!F44 -> NA | K44: ='B1.1 Re-Based Bill Det & Rates'!I44 -> 0 | L44: ='B1.1 Re-Based Bill Det & Rates'!J44 -> 0 | M44: ='B1.1 Re-Based Bill Det & Rates'!K44 -> 0 | O44: 0 | P44: 0 | Q44: 0 | R44: 0 | T44: 0 | U44: 0 | V44: 0 | W44: 0
C45: ='B1.1 Re-Based Bill Det & Rates'!D45 -> Rate Class 24 | D45: ='B1.1 Re-Based Bill Det & Rates'!E45 -> NA | E45: ='B1.1 Re-Based Bill Det & Rates'!F45 -> NA | K45: ='B1.1 Re-Based Bill Det & Rates'!I45 -> 0 | L45: ='B1.1 Re-Based Bill Det & Rates'!J45 -> 0 | M45: ='B1.1 Re-Based Bill Det & Rates'!K45 -> 0 | O45: 0 | P45: 0 | Q45: 0 | R45: 0 | T45: 0 | U45: 0 | V45: 0 | W45: 0
C46: ='B1.1 Re-Based Bill Det & Rates'!D46 -> Rate Class 25 | D46: ='B1.1 Re-Based Bill Det & Rates'!E46 -> NA | E46: ='B1.1 Re-Based Bill Det & Rates'!F46 -> NA | K46: ='B1.1 Re-Based Bill Det & Rates'!I46 -> 0 | L46: ='B1.1 Re-Based Bill Det & Rates'!J46 -> 0 | M46: ='B1.1 Re-Based Bill Det & Rates'!K46 -> 0 | O46: 0 | P46: 0 | Q46: 0 | R46: 0 | T46: 0 | U46: 0 | V46: 0 | W46: 0
O48: =SUM(O22:O46) -> 4765683.36 | P48: =SUM(P22:P46) -> 3397516.269 | Q48: =SUM(Q22:Q46) -> 2016147.318 | R48: 10179346.95 | T48: =SUM(T22:T47) -> 0.4681718174 | U48: =SUM(U22:U47) -> 0.333765642 | V48: =SUM(V22:V47) -> 0.1980625406 | W48: =SUM(W22:W47) -> 1
R49: K

Sheet E1.1 Threshold Parameters
C10: ='Z1.0 OEB Control Sheet'!C11 -> Threshold Parameters
C20: Price Cap Index
C22: Price Escalator (GDP-IPI) | E22: 0.016
C24: Less Productivity Factor | E24: -0.0072
C26: Less Stretch Factor | E26: =-'A1.1 LDC Information'!D30 -> -0.002
C28: Price Cap Index | G28: =SUM(E22,E24,E26) -> 0.0068
Q32: zzz
C33: Growth
C35: ="ICM Billing Determinants for Growth - Numerator : " &'A1.1 LDC Information'!D36 -> ICM Billing Determinants for Growth - Numerator : 2010 Re-based Forecast | G35: ='C1.1 Ld Act-Mst Rcent Yr'!S47 -> 9967414.313 | H35: A
C37: ="ICM Billing Determinants for Growth - Denominator : " &'A1.1 LDC Information'!D38 -> ICM Billing Determinants for Growth - Denominator : 2011 Actual | G37: ='B1.3 Re-Based Rev From Rates'!P47 -> 10000841.86 | H37: B
C40: Growth | G40: =IF(ISERROR(G35/G37),0,(G35/G37)-1) -> -0.00334247339 | H40: C = A / B

Sheet E2.1 Threshold Test
C10: ='Z1.0 OEB Control Sheet'!C12 -> Threshold Test
C20: Year | E20: ='A1.1 LDC Information'!D32 -> 2010
C23: Price Cap Index | E23: ='E1.1 Threshold Parameters'!G28 -> 0.0068 | F23: A
C24: Growth | E24: ='E1.1 Threshold Parameters'!G40 -> -0.00334247339 | F24: B
C25: Dead Band | E25: 0.2 | F25: C
C26: Average Net Fixed Assets
C27: Gross Fixed Assets Opening | E27: ='B1.4 Re-Based Rev Req'!E22 -> 73469244
C28: Add: CWIP Opening | E28: ='B1.4 Re-Based Rev Req'!E23 -> 3357000
C29: Capital Additions | E29: ='B1.4 Re-Based Rev Req'!E24 -> 0
C30: Capital Disposals | E30: ='B1.4 Re-Based Rev Req'!E25 -> 0
C31: Capital Retirements | E31: ='B1.4 Re-Based Rev Req'!E26 -> 0
C32: Deduct: CWIP Closing | E32: ='B1.4 Re-Based Rev Req'!E27 -> 0
C33: Gross Fixed Assets - Closing | E33: =SUM(E27:E32) -> 76826244
C35: Average Gross Fixed Assets | E35: =(E27+E33)/2 -> 75147744
C37: Accumulated Depreciation - Opening | E37: ='B1.4 Re-Based Rev Req'!E31 -> 41462401
C38: Depreciation Expense | E38: ='B1.4 Re-Based Rev Req'!E32 -> 2787375 | F38: D
C39: Disposals | E39: ='B1.4 Re-Based Rev Req'!E33 -> 0
C40: Retirements | E40: ='B1.4 Re-Based Rev Req'!E34 -> 0
C41: Accumulated Depreciation - Closing | E41: =SUM(E37:E40) -> 44249776
C43: Average Accumulated Depreciation | E43: =(E37+E41)/2 -> 42856088.5
C45: Average Net Fixed Assets | E45: =E35-E43 -> 32291655.5 | F45: E
C48: Working Capital Allowance
C49: Working Capital Allowance Base | E49: ='B1.4 Re-Based Rev Req'!E41 -> 52239484
C50: Working Capital Allowance Rate | E50: ='B1.4 Re-Based Rev Req'!E42 -> 0.15
C51: Working Capital Allowance | E51: =E49*E50 -> 7835922.6 | F51: F
C53: Rate Base | E53: =E45+E51 -> 40127578.1 | F53: G = E + F
C55: Depreciation | D55: D | E55: =E38 -> 2787375 | F55: H
C57: Threshold Test | E57: =IF(ISERROR(1+(RB/d)*(g+PCI*(1+g))),0,1+(RB/d)*(g+PCI*(1+g))+db) -> 1.249447999 | F57: I = 1 + ( G / H) * ( B + A * ( 1 + B)) + C
C60: Threshold CAPEX | E60: =d*E57 -> 3482680.117 | F60: J = H *I

Sheet E3.1 Summary of I C Projects
C10: ='Z1.0 OEB Control Sheet'!C13 & " (ICPs)" -> Summary of Incremental Capital Projects (ICPs)
C20: Number of ICPs
C21: 1
C23: Project ID # | D23: Incremental Capital Non-Discretionary Project Description | F23: Incremental Capital CAPEX | H23: Amortization Expense | J23: CCA
C24: ICP 1 | D24: Construction of 62 MVA Transformation Station | F24: =(15863113+3489000-3642654)/2 -> 7854729.5 | H24: =376208/2 -> 188104 | J24: 660552
C25: ICP 2
C26: ICP 3
C27: ICP 4
C28: ICP 5
C29: ICP 6
C30: ICP 7
C31: ICP 8
C32: ICP 9
C33: ICP 10
C34: ICP 11
C35: ICP 12
C36: ICP 13
C37: ICP 14
C38: ICP 15
C39: ICP 16
C40: ICP 17
C41: ICP 18
C42: ICP 19
C43: ICP 20
C44: ICP 21
C45: ICP 22
C46: ICP 23
C47: ICP 24
C48: ICP 25
F50: =SUM(F24:F48) -> 7854729.5 | H50: =SUM(H24:H48) -> 188104 | J50: =SUM(J24:J48) -> 660552

Sheet E4.1 IncrementalCapitalAdjust
C11: ='Z1.0 OEB Control Sheet'!C14 -> Incremental Capital Adjustment
C21: Current Revenue Requirement
C23: Current Revenue Requirement - Total | F23: ='B1.4 Re-Based Rev Req'!G75 -> 10001217.8 | G23: A
C26: Return on Rate Base
C27: Incremental Capital CAPEX | F27: ='E3.1 Summary of I C Projects'!F50 -> 7854729.5 | G27: B
C28: Depreciation Expense | F28: ='E3.1 Summary of I C Projects'!H50 -> 188104 | G28: C
C29: Incremental Capital CAPEX to be included in Rate Base | F29: =F27-F28 -> 7666625.5 | G29: D = B - C
C31: Deemed ShortTerm Debt % | D31: ='B1.4 Re-Based Rev Req'!E48 -> 0.04 | E31: E | F31: =F29*D31 -> 306665.02 | G31: G = D * E
C32: Deemed Long Term Debt % | D32: ='B1.4 Re-Based Rev Req'!E49 -> 0.56 | E32: F | F32: =F29*D32 -> 4293310.28 | G32: H = D * F
C34: Short Term Interest | D34: ='B1.4 Re-Based Rev Req'!E52 -> 0.0207 | E34: I | F34: =F31*D34 -> 6347.965914 | G34: K = G * I
C35: Long Term Interest | D35: ='B1.4 Re-Based Rev Req'!E53 -> 0.05682152 | E35: J | F35: =F32*D35 -> 243952.4159 | G35: L = H * J
C37: Return on Rate Base - Interest | F37: =SUM(F34:F35) -> 250300.3819 | G37: M = K + L
M39: aaa
C40: Deemed Equity % | D40: ='B1.4 Re-Based Rev Req'!E50 -> 0.4 | E40: N | F40: =F29*D40 -> 3066650.2 | G40: P = D * N
C42: Return on Rate Base -Equity | D42: ='B1.4 Re-Based Rev Req'!E54 -> 0.0985 | E42: O | F42: =F40*D42 -> 302065.0447 | G42: Q = P * O
C44: Return on Rate Base - Total | F44: =F37+F42 -> 552365.4266 | G44: R = M + Q
C48: Amortization Expense
C50: Amortization Expense - Incremental | E50: C | F50: =F28 -> 188104 | G50: S
C53: Grossed up PIL's
C55: Regulatory Taxable Income | E55: O | F55: =F42 -> 302065.0447 | G55: T
C57: Add Back Amortization Expense | E57: S | F57: =F50 -> 188104 | G57: U
C59: Deduct CCA | F59: ='E3.1 Summary of I C Projects'!J50 -> 660552 | G59: V
C61: Incremental Taxable Income | F61: =F55+F57-F59 -> -170382.9553 | G61: W = T + U - V
C63: Current Tax Rate (F1.1 Z-Factor Tax Changes) | D63: 0.265 | E63: X
C65: PIL's Before Gross Up | F65: =F61*D63 -> -45151.48315 | G65: Y = W * X
C67: Incremental Grossed Up PIL's | F67: =F65/(1-D63) -> -61430.58933 | G67: Z = Y / ( 1 - X )
C70: Ontario Capital Tax
C71: Incremental Capital CAPEX | F71: =F27 -> 7854729.5 | G71: AA
C73: Less : Available Capital Exemption (if any) | F73: 0 | G73: AB
C75: Incremental Capital CAPEX subject to OCT | F75: =F71-F73 -> 7854729.5 | G75: AC = AA - AB
C77: Ontario Capital Tax Rate (F1.1 Z-Factor Tax Changes) | D77: 0 | E77: AD
C79: Incremental Ontario Capital Tax | F79: =F75*D77 -> 0 | G79: AE = AC * AD
C82: Incremental Revenue Requirement
C83: Return on Rate Base - Total | E83: Q | F83: =F44 -> 552365.4266 | G83: AF
C84: Amortization Expense - Total | E84: S | F84: =F50 -> 188104 | G84: AG
C85: Incremental Grossed Up PIL's | E85: Z | F85: =F67 -> -61430.58933 | G85: AH
C86: Incremental Ontario Capital Tax | E86: AE | F86: =F79 -> 0 | G86: AI
C88: Incremental Revenue Requirement | F88: =SUM(F83:F86) -> 679038.8372 | G88: AJ = AF + AG + AH + AI

Sheet F1.1 Incr Cap RRider Opt A FV
C10: ='Z1.0 OEB Control Sheet'!C15 -> Calculation of Incremental Capital Rate Rider - Option A Fixed and Variable
B20: Control | C20: Rate Class | D20: Fixed Metric | E20: Vol Metric | G20: Service Charge % Revenue | H20: Distribution Volumetric Rate % Revenue kWh | I20: Distribution Volumetric Rate % Revenue kW | K20: Service Charge Revenue | L20: Distribution Volumetric Rate Revenue kWh | M20: Distribution Volumetric Rate Revenue kW | N20: Total Revenue by Rate Class | P20: Billed Customers or Connections | Q20: Billed kWh | R20: Billed kW | T20: Service Charge Rate Rider | U20: Distribution Volumetric Rate kWh Rate Rider | V20: Distribution Volumetric Rate kW Rate Rider
G21: A | H21: B | I21: C | K21: D = $N * A | L21: E = $N * B | M21: F = $N * C | N21: G = D + E + F | P21: H | Q21: I | R21: J | T21: K = D / H / 12 | U21: L = E / I | V21: M = F / J
B22: 1 | C22: ='B1.1 Re-Based Bill Det & Rates'!D22 -> Residential | D22: ='B1.1 Re-Based Bill Det & Rates'!E22 -> Customer | E22: ='B1.1 Re-Based Bill Det & Rates'!F22 -> kWh | G22: ='D1.1 Current Revenue from Rates'!T22 -> 0.3010281127 | H22: ='D1.1 Current Revenue from Rates'!U22 -> 0.230152036 | I22: ='D1.1 Current Revenue from Rates'!V22 -> 0 | K22: =IF(ISERROR($N$47*G22),"",$N$47*G22) -> 204409.7796 | L22: =IF(ISERROR($N$47*H22),"",$N$47*H22) -> 156282.1709 | M22: =IF(ISERROR($N$47*I22),"",$N$47*I22) -> 0 | N22: =SUM(K22:M22) -> 360691.9505 | P22: ='B1.1 Re-Based Bill Det & Rates'!I22 -> 17115 | Q22: ='B1.1 Re-Based Bill Det & Rates'!J22 -> 141132375 | R22: ='B1.1 Re-Based Bill Det & Rates'!K22 -> 0 | T22: =IF(ISERROR(K22/P22/12),"",ROUND(K22/P22/12,6)) -> 0.995276 | U22: =IF(ISERROR(L22/Q22),"",ROUND(L22/Q22,6)) -> 0.001107 | V22: =IF(ISERROR(M22/R22),"",ROUND(M22/R22,6)) -> 
B23: 2 | C23: ='B1.1 Re-Based Bill Det & Rates'!D23 -> Residential - Hensall | D23: ='B1.1 Re-Based Bill Det & Rates'!E23 -> Customer | E23: ='B1.1 Re-Based Bill Det & Rates'!F23 -> kWh | G23: ='D1.1 Current Revenue from Rates'!T23 -> 0.006728518082 | H23: ='D1.1 Current Revenue from Rates'!U23 -> 0.006064468027 | I23: ='D1.1 Current Revenue from Rates'!V23 -> 0 | K23: 4568.925095 | L23: 4118.009318 | M23: 0 | N23: 8686.934413 | P23: ='B1.1 Re-Based Bill Det & Rates'!I23 -> 413 | Q23: ='B1.1 Re-Based Bill Det & Rates'!J23 -> 4143109 | R23: ='B1.1 Re-Based Bill Det & Rates'!K23 -> 0 | T23: =IF(ISERROR(K23/P23/12),"",ROUND(K23/P23/12,6)) -> 0.921898 | U23: =IF(ISERROR(L23/Q23),"",ROUND(L23/Q23,6)) -> 0.000994 | V23: =IF(ISERROR(M23/R23),"",ROUND(M23/R23,6)) -> 
B24: 3 | C24: ='B1.1 Re-Based Bill Det & Rates'!D24 -> General Service Less Than 50 kW | D24: ='B1.1 Re-Based Bill Det & Rates'!E24 -> Customer | E24: ='B1.1 Re-Based Bill Det & Rates'!F24 -> kWh | G24: ='D1.1 Current Revenue from Rates'!T24 -> 0.06700135908 | H24: ='D1.1 Current Revenue from Rates'!U24 -> 0.09676965545 | I24: ='D1.1 Current Revenue from Rates'!V24 -> 0 | K24: 45496.52496 | L24: 65710.35432 | M24: 0 | N24: 111206.8793 | P24: ='B1.1 Re-Based Bill Det & Rates'!I24 -> 1968 | Q24: ='B1.1 Re-Based Bill Det & Rates'!J24 -> 67469308 | R24: ='B1.1 Re-Based Bill Det & Rates'!K24 -> 0 | T24: 1.926513 | U24: 0.000974
B25: 4 | C25: ='B1.1 Re-Based Bill Det & Rates'!D25 -> General Service 50 to 4,999 kW | D25: ='B1.1 Re-Based Bill Det & Rates'!E25 -> Customer | E25: ='B1.1 Re-Based Bill Det & Rates'!F25 -> kW | G25: ='D1.1 Current Revenue from Rates'!T25 -> 0.05816016323 | H25: ='D1.1 Current Revenue from Rates'!U25 -> 0 | I25: ='D1.1 Current Revenue from Rates'!V25 -> 0.1793893182 | K25: 39493.00961 | L25: 0 | M25: 121812.3141 | N25: 161305.3237 | P25: ='B1.1 Re-Based Bill Det & Rates'!I25 -> 221 | Q25: ='B1.1 Re-Based Bill Det & Rates'!J25 -> 316941804 | R25: ='B1.1 Re-Based Bill Det & Rates'!K25 -> 797792 | T25: 14.891783 | U25: 0 | V25: 0.152687
B26: 5 | C26: ='B1.1 Re-Based Bill Det & Rates'!D26 -> Large Use | D26: ='B1.1 Re-Based Bill Det & Rates'!E26 -> Customer | E26: ='B1.1 Re-Based Bill Det & Rates'!F26 -> kW | G26: ='D1.1 Current Revenue from Rates'!T26 -> 0.0251731355 | H26: ='D1.1 Current Revenue from Rates'!U26 -> 0 | I26: ='D1.1 Current Revenue from Rates'!V26 -> 0.012525664 | K26: 17093.53666 | L26: 0 | M26: 8505.412318 | N26: 25598.94898 | P26: ='B1.1 Re-Based Bill Det & Rates'!I26 -> 2 | Q26: ='B1.1 Re-Based Bill Det & Rates'!J26 -> 65544852 | R26: ='B1.1 Re-Based Bill Det & Rates'!K26 -> 128687 | T26: 712.230694 | U26: 0 | V26: 0.066094
B27: 6 | C27: ='B1.1 Re-Based Bill Det & Rates'!D27 -> Unmetered Scattered Load | D27: ='B1.1 Re-Based Bill Det & Rates'!E27 -> Connection | E27: ='B1.1 Re-Based Bill Det & Rates'!F27 -> kWh | G27: ='D1.1 Current Revenue from Rates'!T27 -> 0.002352103738 | H27: ='D1.1 Current Revenue from Rates'!U27 -> 0.0007794825386 | I27: ='D1.1 Current Revenue from Rates'!V27 -> 0 | K27: 1597.169787 | L27: 529.2989167 | M27: 0 | N27: 2126.468704 | P27: ='B1.1 Re-Based Bill Det & Rates'!I27 -> 156 | Q27: ='B1.1 Re-Based Bill Det & Rates'!J27 -> 629732 | R27: ='B1.1 Re-Based Bill Det & Rates'!K27 -> 0 | T27: 0.853189 | U27: 0.000841
B28: 7 | C28: ='B1.1 Re-Based Bill Det & Rates'!D28 -> Sentinel Lighting | D28: ='B1.1 Re-Based Bill Det & Rates'!E28 -> Connection | E28: ='B1.1 Re-Based Bill Det & Rates'!F28 -> kW | G28: ='D1.1 Current Revenue from Rates'!T28 -> 0.0001976472568 | H28: ='D1.1 Current Revenue from Rates'!U28 -> 0 | I28: ='D1.1 Current Revenue from Rates'!V28 -> 0.0007079929624 | K28: 134.2101634 | L28: 0 | M28: 480.7547179 | N28: 614.9648814 | P28: ='B1.1 Re-Based Bill Det & Rates'!I28 -> 83 | Q28: ='B1.1 Re-Based Bill Det & Rates'!J28 -> 234690 | R28: ='B1.1 Re-Based Bill Det & Rates'!K28 -> 679 | T28: 0.134749 | U28: 0 | V28: 0.708033
B29: 8 | C29: ='B1.1 Re-Based Bill Det & Rates'!D29 -> Street Lighting | D29: ='B1.1 Re-Based Bill Det & Rates'!E29 -> Connection | E29: ='B1.1 Re-Based Bill Det & Rates'!F29 -> kW | G29: ='D1.1 Current Revenue from Rates'!T29 -> 0.007530777799 | H29: ='D1.1 Current Revenue from Rates'!U29 -> 0 | I29: ='D1.1 Current Revenue from Rates'!V29 -> 0.005439565405 | K29: 5113.6906 | L29: 0 | M29: 3693.676168 | N29: 8807.366768 | P29: ='B1.1 Re-Based Bill Det & Rates'!I29 -> 5915 | Q29: ='B1.1 Re-Based Bill Det & Rates'!J29 -> 3904130 | R29: ='B1.1 Re-Based Bill Det & Rates'!K29 -> 11255 | T29: 0.072044 | U29: 0 | V29: 0.328181
B30: 9 | C30: ='B1.1 Re-Based Bill Det & Rates'!D30 -> Rate Class 9 | D30: ='B1.1 Re-Based Bill Det & Rates'!E30 -> NA | E30: ='B1.1 Re-Based Bill Det & Rates'!F30 -> NA | G30: ='D1.1 Current Revenue from Rates'!T30 -> 0 | H30: ='D1.1 Current Revenue from Rates'!U30 -> 0 | I30: ='D1.1 Current Revenue from Rates'!V30 -> 0 | K30: 0 | L30: 0 | M30: 0 | N30: 0 | P30: ='B1.1 Re-Based Bill Det & Rates'!I30 -> 0 | Q30: ='B1.1 Re-Based Bill Det & Rates'!J30 -> 0 | R30: ='B1.1 Re-Based Bill Det & Rates'!K30 -> 0
B31: 10 | C31: ='B1.1 Re-Based Bill Det & Rates'!D31 -> Rate Class 10 | D31: ='B1.1 Re-Based Bill Det & Rates'!E31 -> NA | E31: ='B1.1 Re-Based Bill Det & Rates'!F31 -> NA | G31: ='D1.1 Current Revenue from Rates'!T31 -> 0 | H31: ='D1.1 Current Revenue from Rates'!U31 -> 0 | I31: ='D1.1 Current Revenue from Rates'!V31 -> 0 | K31: 0 | L31: 0 | M31: 0 | N31: 0 | P31: ='B1.1 Re-Based Bill Det & Rates'!I31 -> 0 | Q31: ='B1.1 Re-Based Bill Det & Rates'!J31 -> 0 | R31: ='B1.1 Re-Based Bill Det & Rates'!K31 -> 0
B32: 11 | C32: ='B1.1 Re-Based Bill Det & Rates'!D32 -> Rate Class 11 | D32: ='B1.1 Re-Based Bill Det & Rates'!E32 -> NA | E32: ='B1.1 Re-Based Bill Det & Rates'!F32 -> NA | G32: ='D1.1 Current Revenue from Rates'!T32 -> 0 | H32: ='D1.1 Current Revenue from Rates'!U32 -> 0 | I32: ='D1.1 Current Revenue from Rates'!V32 -> 0 | K32: 0 | L32: 0 | M32: 0 | N32: 0 | P32: ='B1.1 Re-Based Bill Det & Rates'!I32 -> 0 | Q32: ='B1.1 Re-Based Bill Det & Rates'!J32 -> 0 | R32: ='B1.1 Re-Based Bill Det & Rates'!K32 -> 0
B33: 12 | C33: ='B1.1 Re-Based Bill Det & Rates'!D33 -> Rate Class 12 | D33: ='B1.1 Re-Based Bill Det & Rates'!E33 -> NA | E33: ='B1.1 Re-Based Bill Det & Rates'!F33 -> NA | G33: ='D1.1 Current Revenue from Rates'!T33 -> 0 | H33: ='D1.1 Current Revenue from Rates'!U33 -> 0 | I33: ='D1.1 Current Revenue from Rates'!V33 -> 0 | K33: 0 | L33: 0 | M33: 0 | N33: 0 | P33: ='B1.1 Re-Based Bill Det & Rates'!I33 -> 0 | Q33: ='B1.1 Re-Based Bill Det & Rates'!J33 -> 0 | R33: ='B1.1 Re-Based Bill Det & Rates'!K33 -> 0
B34: 13 | C34: ='B1.1 Re-Based Bill Det & Rates'!D34 -> Rate Class 13 | D34: ='B1.1 Re-Based Bill Det & Rates'!E34 -> NA | E34: ='B1.1 Re-Based Bill Det & Rates'!F34 -> NA | G34: ='D1.1 Current Revenue from Rates'!T34 -> 0 | H34: ='D1.1 Current Revenue from Rates'!U34 -> 0 | I34: ='D1.1 Current Revenue from Rates'!V34 -> 0 | K34: 0 | L34: 0 | M34: 0 | N34: 0 | P34: ='B1.1 Re-Based Bill Det & Rates'!I34 -> 0 | Q34: ='B1.1 Re-Based Bill Det & Rates'!J34 -> 0 | R34: ='B1.1 Re-Based Bill Det & Rates'!K34 -> 0
B35: 14 | C35: ='B1.1 Re-Based Bill Det & Rates'!D35 -> Rate Class 14 | D35: ='B1.1 Re-Based Bill Det & Rates'!E35 -> NA | E35: ='B1.1 Re-Based Bill Det & Rates'!F35 -> NA | G35: ='D1.1 Current Revenue from Rates'!T35 -> 0 | H35: ='D1.1 Current Revenue from Rates'!U35 -> 0 | I35: ='D1.1 Current Revenue from Rates'!V35 -> 0 | K35: 0 | L35: 0 | M35: 0 | N35: 0 | P35: ='B1.1 Re-Based Bill Det & Rates'!I35 -> 0 | Q35: ='B1.1 Re-Based Bill Det & Rates'!J35 -> 0 | R35: ='B1.1 Re-Based Bill Det & Rates'!K35 -> 0
B36: 15 | C36: ='B1.1 Re-Based Bill Det & Rates'!D36 -> Rate Class 15 | D36: ='B1.1 Re-Based Bill Det & Rates'!E36 -> NA | E36: ='B1.1 Re-Based Bill Det & Rates'!F36 -> NA | G36: ='D1.1 Current Revenue from Rates'!T36 -> 0 | H36: ='D1.1 Current Revenue from Rates'!U36 -> 0 | I36: ='D1.1 Current Revenue from Rates'!V36 -> 0 | K36: 0 | L36: 0 | M36: 0 | N36: 0 | P36: ='B1.1 Re-Based Bill Det & Rates'!I36 -> 0 | Q36: ='B1.1 Re-Based Bill Det & Rates'!J36 -> 0 | R36: ='B1.1 Re-Based Bill Det & Rates'!K36 -> 0
B37: 16 | C37: ='B1.1 Re-Based Bill Det & Rates'!D37 -> Rate Class 16 | D37: ='B1.1 Re-Based Bill Det & Rates'!E37 -> NA | E37: ='B1.1 Re-Based Bill Det & Rates'!F37 -> NA | G37: ='D1.1 Current Revenue from Rates'!T37 -> 0 | H37: ='D1.1 Current Revenue from Rates'!U37 -> 0 | I37: ='D1.1 Current Revenue from Rates'!V37 -> 0 | K37: 0 | L37: 0 | M37: 0 | N37: 0 | P37: ='B1.1 Re-Based Bill Det & Rates'!I37 -> 0 | Q37: ='B1.1 Re-Based Bill Det & Rates'!J37 -> 0 | R37: ='B1.1 Re-Based Bill Det & Rates'!K37 -> 0
B38: 17 | C38: ='B1.1 Re-Based Bill Det & Rates'!D38 -> Rate Class 17 | D38: ='B1.1 Re-Based Bill Det & Rates'!E38 -> NA | E38: ='B1.1 Re-Based Bill Det & Rates'!F38 -> NA | G38: ='D1.1 Current Revenue from Rates'!T38 -> 0 | H38: ='D1.1 Current Revenue from Rates'!U38 -> 0 | I38: ='D1.1 Current Revenue from Rates'!V38 -> 0 | K38: 0 | L38: 0 | M38: 0 | N38: 0 | P38: ='B1.1 Re-Based Bill Det & Rates'!I38 -> 0 | Q38: ='B1.1 Re-Based Bill Det & Rates'!J38 -> 0 | R38: ='B1.1 Re-Based Bill Det & Rates'!K38 -> 0
B39: 18 | C39: ='B1.1 Re-Based Bill Det & Rates'!D39 -> Rate Class 18 | D39: ='B1.1 Re-Based Bill Det & Rates'!E39 -> NA | E39: ='B1.1 Re-Based Bill Det & Rates'!F39 -> NA | G39: ='D1.1 Current Revenue from Rates'!T39 -> 0 | H39: ='D1.1 Current Revenue from Rates'!U39 -> 0 | I39: ='D1.1 Current Revenue from Rates'!V39 -> 0 | K39: 0 | L39: 0 | M39: 0 | N39: 0 | P39: ='B1.1 Re-Based Bill Det & Rates'!I39 -> 0 | Q39: ='B1.1 Re-Based Bill Det & Rates'!J39 -> 0 | R39: ='B1.1 Re-Based Bill Det & Rates'!K39 -> 0
B40: 19 | C40: ='B1.1 Re-Based Bill Det & Rates'!D40 -> Rate Class 19 | D40: ='B1.1 Re-Based Bill Det & Rates'!E40 -> NA | E40: ='B1.1 Re-Based Bill Det & Rates'!F40 -> NA | G40: ='D1.1 Current Revenue from Rates'!T40 -> 0 | H40: ='D1.1 Current Revenue from Rates'!U40 -> 0 | I40: ='D1.1 Current Revenue from Rates'!V40 -> 0 | K40: 0 | L40: 0 | M40: 0 | N40: 0 | P40: ='B1.1 Re-Based Bill Det & Rates'!I40 -> 0 | Q40: ='B1.1 Re-Based Bill Det & Rates'!J40 -> 0 | R40: ='B1.1 Re-Based Bill Det & Rates'!K40 -> 0
B41: 20 | C41: ='B1.1 Re-Based Bill Det & Rates'!D41 -> Rate Class 20 | D41: ='B1.1 Re-Based Bill Det & Rates'!E41 -> NA | E41: ='B1.1 Re-Based Bill Det & Rates'!F41 -> NA | G41: ='D1.1 Current Revenue from Rates'!T41 -> 0 | H41: ='D1.1 Current Revenue from Rates'!U41 -> 0 | I41: ='D1.1 Current Revenue from Rates'!V41 -> 0 | K41: 0 | L41: 0 | M41: 0 | N41: 0 | P41: ='B1.1 Re-Based Bill Det & Rates'!I41 -> 0 | Q41: ='B1.1 Re-Based Bill Det & Rates'!J41 -> 0 | R41: ='B1.1 Re-Based Bill Det & Rates'!K41 -> 0
B42: 21 | C42: ='B1.1 Re-Based Bill Det & Rates'!D42 -> Rate Class 21 | D42: ='B1.1 Re-Based Bill Det & Rates'!E42 -> NA | E42: ='B1.1 Re-Based Bill Det & Rates'!F42 -> NA | G42: ='D1.1 Current Revenue from Rates'!T42 -> 0 | H42: ='D1.1 Current Revenue from Rates'!U42 -> 0 | I42: ='D1.1 Current Revenue from Rates'!V42 -> 0 | K42: 0 | L42: 0 | M42: 0 | N42: 0 | P42: ='B1.1 Re-Based Bill Det & Rates'!I42 -> 0 | Q42: ='B1.1 Re-Based Bill Det & Rates'!J42 -> 0 | R42: ='B1.1 Re-Based Bill Det & Rates'!K42 -> 0
B43: 22 | C43: ='B1.1 Re-Based Bill Det & Rates'!D43 -> Rate Class 22 | D43: ='B1.1 Re-Based Bill Det & Rates'!E43 -> NA | E43: ='B1.1 Re-Based Bill Det & Rates'!F43 -> NA | G43: ='D1.1 Current Revenue from Rates'!T43 -> 0 | H43: ='D1.1 Current Revenue from Rates'!U43 -> 0 | I43: ='D1.1 Current Revenue from Rates'!V43 -> 0 | K43: 0 | L43: 0 | M43: 0 | N43: 0 | P43: ='B1.1 Re-Based Bill Det & Rates'!I43 -> 0 | Q43: ='B1.1 Re-Based Bill Det & Rates'!J43 -> 0 | R43: ='B1.1 Re-Based Bill Det & Rates'!K43 -> 0
B44: 23 | C44: ='B1.1 Re-Based Bill Det & Rates'!D44 -> Rate Class 23 | D44: ='B1.1 Re-Based Bill Det & Rates'!E44 -> NA | E44: ='B1.1 Re-Based Bill Det & Rates'!F44 -> NA | G44: ='D1.1 Current Revenue from Rates'!T44 -> 0 | H44: ='D1.1 Current Revenue from Rates'!U44 -> 0 | I44: ='D1.1 Current Revenue from Rates'!V44 -> 0 | K44: 0 | L44: 0 | M44: 0 | N44: 0 | P44: ='B1.1 Re-Based Bill Det & Rates'!I44 -> 0 | Q44: ='B1.1 Re-Based Bill Det & Rates'!J44 -> 0 | R44: ='B1.1 Re-Based Bill Det & Rates'!K44 -> 0
B45: 24 | C45: ='B1.1 Re-Based Bill Det & Rates'!D45 -> Rate Class 24 | D45: ='B1.1 Re-Based Bill Det & Rates'!E45 -> NA | E45: ='B1.1 Re-Based Bill Det & Rates'!F45 -> NA | G45: ='D1.1 Current Revenue from Rates'!T45 -> 0 | H45: ='D1.1 Current Revenue from Rates'!U45 -> 0 | I45: ='D1.1 Current Revenue from Rates'!V45 -> 0 | K45: 0 | L45: 0 | M45: 0 | N45: 0 | P45: ='B1.1 Re-Based Bill Det & Rates'!I45 -> 0 | Q45: ='B1.1 Re-Based Bill Det & Rates'!J45 -> 0 | R45: ='B1.1 Re-Based Bill Det & Rates'!K45 -> 0
B46: 25 | C46: ='B1.1 Re-Based Bill Det & Rates'!D46 -> Rate Class 25 | D46: ='B1.1 Re-Based Bill Det & Rates'!E46 -> NA | E46: ='B1.1 Re-Based Bill Det & Rates'!F46 -> NA | G46: ='D1.1 Current Revenue from Rates'!T46 -> 0 | H46: ='D1.1 Current Revenue from Rates'!U46 -> 0 | I46: ='D1.1 Current Revenue from Rates'!V46 -> 0 | K46: 0 | L46: 0 | M46: 0 | N46: 0 | P46: ='B1.1 Re-Based Bill Det & Rates'!I46 -> 0 | Q46: ='B1.1 Re-Based Bill Det & Rates'!J46 -> 0 | R46: ='B1.1 Re-Based Bill Det & Rates'!K46 -> 0
K47: =SUM(K22:K46) -> 317906.8465 | L47: =SUM(L22:L46) -> 226639.8335 | M47: =SUM(M22:M46) -> 134492.1573 | N47: ='E4.1 IncrementalCapitalAdjust'!F88 -> 679038.8372
N48: =SUM(N22:N46)-N47 -> 0
T49: Enter the above rate riders onto "Sheet 11. Proposed Rates" in the 2013 OEB IRM3 Rate Generator as a "Rate Rider for Incremental Capital"

Sheet F1.2 Incr Cap RRider Opt B Var
C10: ='Z1.0 OEB Control Sheet'!C16 -> Calculation of Incremental Capital Rate Rider - Option B Variable
B20: Control | C20: Rate Class | D20: Fixed Metric | E20: Vol Metric | G20: Total Revenue $ by Rate Class | I20: Total Revenue % by Rate Class | K20: Total Incremental Capital $ by Rate Class | M20: Billed kWh | O20: Billed kW | Q20: Distribution Volumetric Rate kWh Rate Rider | S20: Distribution Volumetric Rate kW Rate Rider
G21: A | I21: B = A / $H | K21: C = $I * B | M21: D | O21: E | Q21: F = C / D | S21: G = C / E
B22: 1 | C22: ='B1.1 Re-Based Bill Det & Rates'!D22 -> Residential | D22: ='B1.1 Re-Based Bill Det & Rates'!E22 -> Customer | E22: ='B1.1 Re-Based Bill Det & Rates'!F22 -> kWh | G22: ='D1.1 Current Revenue from Rates'!R22 -> 5407067.025 | I22: =IF(ISERROR(G22/$G$47),0,G22/$G$47) -> 0.5311801487 | K22: =IF(ISERROR(I22*$K$47),0,I22*$K$47) -> 360691.9505 | M22: ='B1.1 Re-Based Bill Det & Rates'!J22 -> 141132375 | O22: ='B1.1 Re-Based Bill Det & Rates'!K22 -> 0 | Q22: =IF($E22="kWh",IF(ISERROR($K22/$M22),"",ROUND($K22/$M22,4)),"") -> 0.0026 | S22: =IF($E22="kW",IF(ISERROR($K22/$O22),"",ROUND($K22/$O22,4)),"") -> 
B23: 2 | C23: ='B1.1 Re-Based Bill Det & Rates'!D23 -> Residential - Hensall | D23: ='B1.1 Re-Based Bill Det & Rates'!E23 -> Customer | E23: ='B1.1 Re-Based Bill Det & Rates'!F23 -> kWh | G23: ='D1.1 Current Revenue from Rates'!R23 -> 130224.2441 | I23: 0.01279298611 | K23: 8686.934413 | M23: ='B1.1 Re-Based Bill Det & Rates'!J23 -> 4143109 | O23: ='B1.1 Re-Based Bill Det & Rates'!K23 -> 0 | Q23: =IF($E23="kWh",IF(ISERROR($K23/$M23),"",ROUND($K23/$M23,4)),"") -> 0.0021 | S23: =IF($E23="kW",IF(ISERROR($K23/$O23),"",ROUND($K23/$O23,4)),"") -> 
B24: 3 | C24: ='B1.1 Re-Based Bill Det & Rates'!D24 -> General Service Less Than 50 kW | D24: ='B1.1 Re-Based Bill Det & Rates'!E24 -> Customer | E24: ='B1.1 Re-Based Bill Det & Rates'!F24 -> kWh | G24: ='D1.1 Current Revenue from Rates'!R24 -> 1667081.977 | I24: 0.1637710145 | K24: 111206.8793 | M24: ='B1.1 Re-Based Bill Det & Rates'!J24 -> 67469308 | O24: ='B1.1 Re-Based Bill Det & Rates'!K24 -> 0 | Q24: 0.0016
B25: 4 | C25: ='B1.1 Re-Based Bill Det & Rates'!D25 -> General Service 50 to 4,999 kW | D25: ='B1.1 Re-Based Bill Det & Rates'!E25 -> Customer | E25: ='B1.1 Re-Based Bill Det & Rates'!F25 -> kW | G25: ='D1.1 Current Revenue from Rates'!R25 -> 2418098.589 | I25: 0.2375494815 | K25: 161305.3237 | M25: ='B1.1 Re-Based Bill Det & Rates'!J25 -> 316941804 | O25: ='B1.1 Re-Based Bill Det & Rates'!K25 -> 797792 | S25: 0.2022
B26: 5 | C26: ='B1.1 Re-Based Bill Det & Rates'!D26 -> Large Use | D26: ='B1.1 Re-Based Bill Det & Rates'!E26 -> Customer | E26: ='B1.1 Re-Based Bill Det & Rates'!F26 -> kW | G26: ='D1.1 Current Revenue from Rates'!R26 -> 383749.1596 | I26: 0.0376987995 | K26: 25598.94898 | M26: ='B1.1 Re-Based Bill Det & Rates'!J26 -> 65544852 | O26: ='B1.1 Re-Based Bill Det & Rates'!K26 -> 128687 | S26: 0.1989
B27: 6 | C27: ='B1.1 Re-Based Bill Det & Rates'!D27 -> Unmetered Scattered Load | D27: ='B1.1 Re-Based Bill Det & Rates'!E27 -> Connection | E27: ='B1.1 Re-Based Bill Det & Rates'!F27 -> kWh | G27: ='D1.1 Current Revenue from Rates'!R27 -> 31877.5032 | I27: 0.003131586276 | K27: 2126.468704 | M27: ='B1.1 Re-Based Bill Det & Rates'!J27 -> 629732 | O27: ='B1.1 Re-Based Bill Det & Rates'!K27 -> 0 | Q27: 0.0034
B28: 7 | C28: ='B1.1 Re-Based Bill Det & Rates'!D28 -> Sentinel Lighting | D28: ='B1.1 Re-Based Bill Det & Rates'!E28 -> Connection | E28: ='B1.1 Re-Based Bill Det & Rates'!F28 -> kW | G28: ='D1.1 Current Revenue from Rates'!R28 -> 9218.826 | I28: 0.0009056402192 | K28: 614.9648814 | M28: ='B1.1 Re-Based Bill Det & Rates'!J28 -> 234690 | O28: ='B1.1 Re-Based Bill Det & Rates'!K28 -> 679 | S28: 0.9057
B29: 8 | C29: ='B1.1 Re-Based Bill Det & Rates'!D29 -> Street Lighting | D29: ='B1.1 Re-Based Bill Det & Rates'!E29 -> Connection | E29: ='B1.1 Re-Based Bill Det & Rates'!F29 -> kW | G29: ='D1.1 Current Revenue from Rates'!R29 -> 132029.6235 | I29: 0.0129703432 | K29: 8807.366768 | M29: ='B1.1 Re-Based Bill Det & Rates'!J29 -> 3904130 | O29: ='B1.1 Re-Based Bill Det & Rates'!K29 -> 11255 | S29: 0.7825
B30: 9 | C30: ='B1.1 Re-Based Bill Det & Rates'!D30 -> Rate Class 9 | D30: ='B1.1 Re-Based Bill Det & Rates'!E30 -> NA | E30: ='B1.1 Re-Based Bill Det & Rates'!F30 -> NA | G30: ='D1.1 Current Revenue from Rates'!R30 -> 0 | I30: 0 | K30: 0 | M30: ='B1.1 Re-Based Bill Det & Rates'!J30 -> 0 | O30: ='B1.1 Re-Based Bill Det & Rates'!K30 -> 0
B31: 10 | C31: ='B1.1 Re-Based Bill Det & Rates'!D31 -> Rate Class 10 | D31: ='B1.1 Re-Based Bill Det & Rates'!E31 -> NA | E31: ='B1.1 Re-Based Bill Det & Rates'!F31 -> NA | G31: ='D1.1 Current Revenue from Rates'!R31 -> 0 | I31: 0 | K31: 0 | M31: ='B1.1 Re-Based Bill Det & Rates'!J31 -> 0 | O31: ='B1.1 Re-Based Bill Det & Rates'!K31 -> 0 | T31: aaa
B32: 11 | C32: ='B1.1 Re-Based Bill Det & Rates'!D32 -> Rate Class 11 | D32: ='B1.1 Re-Based Bill Det & Rates'!E32 -> NA | E32: ='B1.1 Re-Based Bill Det & Rates'!F32 -> NA | G32: ='D1.1 Current Revenue from Rates'!R32 -> 0 | I32: 0 | K32: 0 | M32: ='B1.1 Re-Based Bill Det & Rates'!J32 -> 0 | O32: ='B1.1 Re-Based Bill Det & Rates'!K32 -> 0
B33: 12 | C33: ='B1.1 Re-Based Bill Det & Rates'!D33 -> Rate Class 12 | D33: ='B1.1 Re-Based Bill Det & Rates'!E33 -> NA | E33: ='B1.1 Re-Based Bill Det & Rates'!F33 -> NA | G33: ='D1.1 Current Revenue from Rates'!R33 -> 0 | I33: 0 | K33: 0 | M33: ='B1.1 Re-Based Bill Det & Rates'!J33 -> 0 | O33: ='B1.1 Re-Based Bill Det & Rates'!K33 -> 0
B34: 13 | C34: ='B1.1 Re-Based Bill Det & Rates'!D34 -> Rate Class 13 | D34: ='B1.1 Re-Based Bill Det & Rates'!E34 -> NA | E34: ='B1.1 Re-Based Bill Det & Rates'!F34 -> NA | G34: ='D1.1 Current Revenue from Rates'!R34 -> 0 | I34: 0 | K34: 0 | M34: ='B1.1 Re-Based Bill Det & Rates'!J34 -> 0 | O34: ='B1.1 Re-Based Bill Det & Rates'!K34 -> 0
B35: 14 | C35: ='B1.1 Re-Based Bill Det & Rates'!D35 -> Rate Class 14 | D35: ='B1.1 Re-Based Bill Det & Rates'!E35 -> NA | E35: ='B1.1 Re-Based Bill Det & Rates'!F35 -> NA | G35: ='D1.1 Current Revenue from Rates'!R35 -> 0 | I35: 0 | K35: 0 | M35: ='B1.1 Re-Based Bill Det & Rates'!J35 -> 0 | O35: ='B1.1 Re-Based Bill Det & Rates'!K35 -> 0
B36: 15 | C36: ='B1.1 Re-Based Bill Det & Rates'!D36 -> Rate Class 15 | D36: ='B1.1 Re-Based Bill Det & Rates'!E36 -> NA | E36: ='B1.1 Re-Based Bill Det & Rates'!F36 -> NA | G36: ='D1.1 Current Revenue from Rates'!R36 -> 0 | I36: 0 | K36: 0 | M36: ='B1.1 Re-Based Bill Det & Rates'!J36 -> 0 | O36: ='B1.1 Re-Based Bill Det & Rates'!K36 -> 0
B37: 16 | C37: ='B1.1 Re-Based Bill Det & Rates'!D37 -> Rate Class 16 | D37: ='B1.1 Re-Based Bill Det & Rates'!E37 -> NA | E37: ='B1.1 Re-Based Bill Det & Rates'!F37 -> NA | G37: ='D1.1 Current Revenue from Rates'!R37 -> 0 | I37: 0 | K37: 0 | M37: ='B1.1 Re-Based Bill Det & Rates'!J37 -> 0 | O37: ='B1.1 Re-Based Bill Det & Rates'!K37 -> 0
B38: 17 | C38: ='B1.1 Re-Based Bill Det & Rates'!D38 -> Rate Class 17 | D38: ='B1.1 Re-Based Bill Det & Rates'!E38 -> NA | E38: ='B1.1 Re-Based Bill Det & Rates'!F38 -> NA | G38: ='D1.1 Current Revenue from Rates'!R38 -> 0 | I38: 0 | K38: 0 | M38: ='B1.1 Re-Based Bill Det & Rates'!J38 -> 0 | O38: ='B1.1 Re-Based Bill Det & Rates'!K38 -> 0
B39: 18 | C39: ='B1.1 Re-Based Bill Det & Rates'!D39 -> Rate Class 18 | D39: ='B1.1 Re-Based Bill Det & Rates'!E39 -> NA | E39: ='B1.1 Re-Based Bill Det & Rates'!F39 -> NA | G39: ='D1.1 Current Revenue from Rates'!R39 -> 0 | I39: 0 | K39: 0 | M39: ='B1.1 Re-Based Bill Det & Rates'!J39 -> 0 | O39: ='B1.1 Re-Based Bill Det & Rates'!K39 -> 0
B40: 19 | C40: ='B1.1 Re-Based Bill Det & Rates'!D40 -> Rate Class 19 | D40: ='B1.1 Re-Based Bill Det & Rates'!E40 -> NA | E40: ='B1.1 Re-Based Bill Det & Rates'!F40 -> NA | G40: ='D1.1 Current Revenue from Rates'!R40 -> 0 | I40: 0 | K40: 0 | M40: ='B1.1 Re-Based Bill Det & Rates'!J40 -> 0 | O40: ='B1.1 Re-Based Bill Det & Rates'!K40 -> 0
B41: 20 | C41: ='B1.1 Re-Based Bill Det & Rates'!D41 -> Rate Class 20 | D41: ='B1.1 Re-Based Bill Det & Rates'!E41 -> NA | E41: ='B1.1 Re-Based Bill Det & Rates'!F41 -> NA | G41: ='D1.1 Current Revenue from Rates'!R41 -> 0 | I41: 0 | K41: 0 | M41: ='B1.1 Re-Based Bill Det & Rates'!J41 -> 0 | O41: ='B1.1 Re-Based Bill Det & Rates'!K41 -> 0
B42: 21 | C42: ='B1.1 Re-Based Bill Det & Rates'!D42 -> Rate Class 21 | D42: ='B1.1 Re-Based Bill Det & Rates'!E42 -> NA | E42: ='B1.1 Re-Based Bill Det & Rates'!F42 -> NA | G42: ='D1.1 Current Revenue from Rates'!R42 -> 0 | I42: 0 | K42: 0 | M42: ='B1.1 Re-Based Bill Det & Rates'!J42 -> 0 | O42: ='B1.1 Re-Based Bill Det & Rates'!K42 -> 0
B43: 22 | C43: ='B1.1 Re-Based Bill Det & Rates'!D43 -> Rate Class 22 | D43: ='B1.1 Re-Based Bill Det & Rates'!E43 -> NA | E43: ='B1.1 Re-Based Bill Det & Rates'!F43 -> NA | G43: ='D1.1 Current Revenue from Rates'!R43 -> 0 | I43: 0 | K43: 0 | M43: ='B1.1 Re-Based Bill Det & Rates'!J43 -> 0 | O43: ='B1.1 Re-Based Bill Det & Rates'!K43 -> 0
B44: 23 | C44: ='B1.1 Re-Based Bill Det & Rates'!D44 -> Rate Class 23 | D44: ='B1.1 Re-Based Bill Det & Rates'!E44 -> NA | E44: ='B1.1 Re-Based Bill Det & Rates'!F44 -> NA | G44: ='D1.1 Current Revenue from Rates'!R44 -> 0 | I44: 0 | K44: 0 | M44: ='B1.1 Re-Based Bill Det & Rates'!J44 -> 0 | O44: ='B1.1 Re-Based Bill Det & Rates'!K44 -> 0
B45: 24 | C45: ='B1.1 Re-Based Bill Det & Rates'!D45 -> Rate Class 24 | D45: ='B1.1 Re-Based Bill Det & Rates'!E45 -> NA | E45: ='B1.1 Re-Based Bill Det & Rates'!F45 -> NA | G45: ='D1.1 Current Revenue from Rates'!R45 -> 0 | I45: 0 | K45: 0 | M45: ='B1.1 Re-Based Bill Det & Rates'!J45 -> 0 | O45: ='B1.1 Re-Based Bill Det & Rates'!K45 -> 0
B46: 25 | C46: ='B1.1 Re-Based Bill Det & Rates'!D46 -> Rate Class 25 | D46: ='B1.1 Re-Based Bill Det & Rates'!E46 -> NA | E46: ='B1.1 Re-Based Bill Det & Rates'!F46 -> NA | G46: ='D1.1 Current Revenue from Rates'!R46 -> 0 | I46: 0 | K46: 0 | M46: ='B1.1 Re-Based Bill Det & Rates'!J46 -> 0 | O46: ='B1.1 Re-Based Bill Det & Rates'!K46 -> 0
G47: =SUM(G22:G46) -> 10179346.95 | I47: =SUM(I22:I46) -> 1 | K47: ='E4.1 IncrementalCapitalAdjust'!F88 -> 679038.8372
G48: H | K48: I | Q48: Enter the above rate riders onto "Sheet 11. Proposed Rates" in the 2013 OEB IRM3 Rate Generator as a "Rate Rider for Incremental Capital"

Sheet Z1.0 OEB Control Sheet (hidden)
A1: Sheet Number | B1: Assignment | C1: Sheet Title | D1: Core Sheet Name | E1: Chrs | F1: OEB Audit | G1: Purpose of Sheet
A2: Sheet1 | B2: A1.1 | C2: LDC Information | D2: A1.1 LDC Information | E2: =LEN(D2) -> 20 | F2: No | G2: Enter LDC Data
A3: Sheet2 | B3: A2.1 | C3: Table of Contents | D3: A2.1 Table of Contents | E3: 22 | F3: No | G3: Table of Contents
A4: Sheet3 | B4: B1.1 | C4: Rate Class and Re-Based Billing Determinants & Rates | D4: B1.1 Re-Based Bill Det & Rates | E4: 30 | F4: No | G4: Set Up Rate Classes and enter Re-Based Billing Determinants and Tariff Rates
A5: Sheet4 | B5: B1.2 | C5: Removal of Rate Adders | D5: B1.2 Removal of Rate Adders | E5: 27 | F5: No | G5: Removal of Rate Adders
A6: Sheet5 | B6: B1.3 | C6: Calculated Re-Based Revenue From Rates | D6: B1.3 Re-Based Rev From Rates | E6: 28 | F6: No | G6: Calculated Re-Based Revenue From Rates
A7: Sheet6 | B7: B1.4 | C7: Detailed Re-Based Revenue From Rates | D7: B1.4 Re-Based Rev Req | E7: 21 | F7: No | G7: Detailed Re-Based Revenue From Rates
A8: Sheet7 | B8: B2.1 | C8: 2010 Base Distribution Rates | D8: B2.1 2010 Base Dist Rates | E8: 25 | F8: No | G8: 2010 Base Distribution Rates
A9: Sheet8 | B9: C1.1 | C9: Load Actual - Most Recent Year | D9: C1.1 Ld Act-Mst Rcent Yr | E9: 24 | F9: No | G9: Enter Billing Determinants for most recent actual year
A10: Sheet9 | B10: D1.1 | C10: Current Revenue from Rates | D10: D1.1 Current Revenue from Rates | E10: 31 | F10: No | G10: Enter Current Rates to calculate current rate allocation
A11: Sheet10 | B11: E1.1 | C11: Threshold Parameters | D11: E1.1 Threshold Parameters | E11: 25 | F11: No | G11: Shows calculation of Price Cap and Growth used for incremental capital threshold calculation
A12: Sheet11 | B12: E2.1 | C12: Threshold Test | D12: E2.1 Threshold Test | E12: 19 | F12: No | G12: Input sheet to calculate Threshold and Incremental Capital
A13: Sheet12 | B13: E3.1 | C13: Summary of Incremental Capital Projects | D13: E3.1 Summary of I C Projects | E13: 28 | F13: No | G13: Summary of Incremental Capital Projects
A14: Sheet13 | B14: E4.1 | C14: Incremental Capital Adjustment | D14: E4.1 IncrementalCapitalAdjust | E14: 29 | F14: No | G14: Shows Calculation of Incremental Capital Revenue Requirement
A15: Sheet14 | B15: F1.1 | C15: Calculation of Incremental Capital Rate Rider - Option A Fixed and Variable | D15: F1.1 Incr Cap RRider Opt A FV | E15: 29 | F15: No | G15: Option A - Calculation of Incremental Capital Rate Rider - Fixed & Variable Split
A16: Sheet15 | B16: F1.2 | C16: Calculation of Incremental Capital Rate Rider - Option B Variable | D16: F1.2 Incr Cap RRider Opt B Var | E16: 30 | F16: No | G16: Option B - Calculation of Incremental Capital Rate Rider - Variable Allocation
A17: Sheet16 | B17: Z1.0 | C17: OEB Control Sheet | D17: Z1.0 OEB Control Sheet | E17: 22 | F17: N/A | G17: Not Shown
